Workbook

Sheet Açıklama
B3: SADECE SARI KUTULARA VERİ GİRİNİZ | L3: HAZIRLAYAN: YASİN ENGİN (İnş.Yük.Müh)
B5: VERİLERİ SADECE "REÇETE DİZAYN-renkli" SAYFASINA GİRİNİZ
B7: "SİYAH-BEYAZ" VE "DİĞER" İSİMLİ SAYFALAR ÇIKTI İÇİN KULLANILABİLİR.
L8: www.betonvecimento.com
L10: yasin.engin@gmail.com
L12: Güncelleme Kontrol Et | T12: Versiyon 5 | U12: Eylül, 2015
O16: TIKLA TAKİP ET!

Sheet Reçete Dizayn-renkli
A1: BETON REÇETE DİZAYN PROGRAMI | J1: Rapor No/Tarih
A3: Beton Sınıfı | B3: C30/37 | C3: =IF(B3<Sheet4!I4,"DEĞİŞTİR","") ->  | D3: Çev. Etki Sınıfı | F3: XC2 | G3: =IF(B3<Sheet4!I4,Sheet4!I9,"") ->  | J3: Klorür Sınıfı | L3: =IF(ISERROR(IF(Sheet2!F21=0,"",Sheet2!D27)),"",IF(Sheet2!F21=0,"",Sheet2!D27)) ->  | O3: 100 | P3: 100 | Q3: 100 | R3: 100 | S3: 100 | T3: 100 | U3: =H23 -> 100
A4: Çimento Sınıfı | B4: CEM I | D4: Min.Katkı k değeri | F4: 0.4 | J4: Alkali Miktarı(kg/m3) | L4: =IF(ISERROR(IF(Sheet3!F26=0,"",Sheet3!F26)),"",IF(Sheet3!F26=0,"",Sheet3!F26)) ->  | O4: =B23 -> 25 | P4: =C23 -> 20 | Q4: 25 | R4: =E23 -> 30 | S4: =F23 -> 0 | T4: =G23 -> 0
A6: AGREGA GRADASYON HESAPLAMASI | J6: BİLEŞEN ÖZELLİKLERİ
A7: ELEK EBATI | B7: ELEKTEN GEÇEN MALZEME (%) | H7: KARIŞIM | J7: Bileşen | K7: Öz.Ağırlık | L7: Cl(%) | M7: Alkali(%)
A8: ( mm ) | B8: 1 NO | C8: 2 NO | D8: T.TOZU | E8: D.KUM | F8: K.KUM | G8: G.D.AGR. | J8: 1 NO | K8: 2.7
A9: 31.5 | B9: 100 | C9: 100 | D9: 100 | E9: 100 | H9: =($B$23*B9+$C$23*C9+$D$23*D9+$E$23*E9+$F$23*F9+$G$23*G9)/100 -> 100 | J9: 2 NO | K9: 2.7
A10: 22.4 | B10: 100 | C10: 82.16666667 | D10: 100 | E10: 100 | H10: 96.43333333 | J10: T.TOZU | K10: 2.69
A11: 19 | B11: 100 | C11: 48.96666667 | D11: 100 | E11: 100 | H11: 89.79333333 | J11: D.KUM | K11: 2.62
A12: 16 | B12: 98 | C12: 21.66666667 | D12: 100 | E12: 100 | H12: 83.83333333 | J12: K.KUM | K12: 2.61
A13: 11.2 | B13: 54.63333333 | C13: 0.9666666667 | D13: 100 | E13: 100 | H13: 68.85166667 | J13: G.D.AGR.
A14: 8 | B14: 11 | C14: 0.3333333333 | D14: 100 | E14: 100 | H14: 57.81666667 | J14: ÇİMENTO 1 | K14: 3.1
A15: 5.6 | B15: 2.066666667 | C15: 0.3333333333 | D15: 95.6 | E15: 100 | H15: 54.48333333 | J15: ÇİMENTO 2 | K15: 3.04
A16: 4 | B16: 0.3333333333 | C16: 0.3333333333 | D16: 77.7 | E16: 90 | H16: 46.575 | J16: SU | K16: 1
A17: 2 | B17: 0.2666666667 | C17: 0.2 | D17: 55.9 | E17: 51 | H17: 29.38166667 | J17: G.D.SU | K17: 1.03
A18: 1 | B18: 0.2666666667 | C18: 0.2 | D18: 39.2 | E18: 35 | H18: 20.40666667 | J18: UÇUCU KÜL | K18: 2.5
A19: 0.5 | B19: 0.2666666667 | C19: 0.2 | D19: 23.8 | E19: 26 | H19: 13.85666667 | J19: S. DUMANI
A20: 0.25 | B20: 0.2666666667 | C20: 0.2 | D20: 11.8 | E20: 20 | H20: 9.056666667 | J20: KİM. KATKI 1 | K20: 1.1
A21: 0.125 | B21: 0.1 | C21: 0.1 | D21: 7 | E21: 14 | H21: 5.995 | I21: 1 | J21: KİM. KATKI 2
A22: 0.063 | B22: 0 | C22: 0 | D22: 2 | E22: 3 | H22: 1.4 | J22: =IF(K24>Sheet4!H4,"SU/ÇİMENTO DÜZELT","") ->  | M22: =IF(K24>Sheet4!H4,Sheet4!H9,"") -> 
A23: MİKTAR(%) | B23: 25 | C23: 20 | D23: 25 | E23: 30 | F23: 0 | G23: 0 | H23: =SUM(B23:G24) -> 100
J24: Su/Çimento | K24: 0.58 | L24: Su(kg) | M24: =IF((K24*(B43+B44+B45*F4+B46*2))=0,"",K24*(B43+B44+B45*F4+B46*2)) -> 176.32
A25: İncelik Modülü | B25: =IF(B23>0,(600-SUM(B16:B21))/100,"") -> 5.985 | C25: =IF(C23>0,(600-SUM(C16:C21))/100,"") -> 5.987666667 | D25: 3.846 | E25: 3.64 | H25: 4.747283333 | T25: ÇOK İNCE MALZEME MUHTEVASI (TS 13515) (<0,125mm) (kg) | V25: ÇOK İNCE MALZEME MUHTEVASI (EN 12620) ( <0,063mm)
A26: 0.063 | B26: =IF($I$21=1,Sheet8!C3,Sheet8!G3) -> 1 | C26: 5 | D26: =AVERAGE(B26:C26) -> 3 | E26: =$H$22 -> 1.4 | F26: =IF(ISERROR(G43/$K$46),"",G43/$K$46) -> 0.07281145934
A27: 0.125 | B27: =IF($I$21=1,Sheet8!C4,Sheet8!G4) -> 2.5 | C27: =IF($I$21=1,Sheet8!D4,Sheet8!H4) -> 8.5 | D27: =IF($I$21=1,Sheet8!E4,Sheet8!I4) -> 5.5 | E27: =$H$21 -> 5.995 | F27: =IF(ISERROR(G44/$K$46),"",G44/$K$46) -> 0.05824916747 | G27: =IF(ISERROR(G43/1000),"",G43/1000) -> 0.1713166276 | H27: Agrega | V27: Tip | W27: Değer(%) | X27: Sınıf
A28: 0.25 | B28: =IF($I$21=1,Sheet8!C5,Sheet8!G5) -> 6 | C28: =IF($I$21=1,Sheet8!D5,Sheet8!H5) -> 15 | D28: =IF($I$21=1,Sheet8!E5,Sheet8!I5) -> 10.5 | E28: =$H$20 -> 9.056666667 | F28: 0.07281145934 | G28: =IF(ISERROR(G44/1000),"",G44/1000) -> 0.1370533021 | H28: Bağlayıcı | J28: Kompasite | L28: =IF(ISERROR(SUM(L33:L40,L42,L43)/M48),"",SUM(L33:L40,L42,L43)/M48) -> 0.7895944789 | V28: İnce Agrega | W28: =IF(ISERROR((D22*D23+E22*E23+F22*F23+G22*G23)/(D23+E23+F23+G23)),"",(D22*D23+E22*E23+F22*F23+G22*G23)/(D23+E23+F23+G23)) -> 2.545454545 | X28: =IF(W28="","",IF(W28<=3,"f3",IF(AND(W28>3,W28<=10),"f10",IF(AND(W28>10,W28<=16),"f16",IF(AND(W28>16,W28<=22),"f22",IF(W28>22,"fbeyan")))))) -> f3
A29: 0.5 | B29: =IF($I$21=1,Sheet8!C6,Sheet8!G6) -> 10 | C29: =IF($I$21=1,Sheet8!D6,Sheet8!H6) -> 22 | D29: =IF($I$21=1,Sheet8!E6,Sheet8!I6) -> 16 | E29: =$H$19 -> 13.85666667 | F29: 0.08737375121 | G29: 0.1713166276 | H29: Su | T29: =IF(ISERROR(K39+K40+K42+K43+(H21*(K33+K34+K35+K36+K37+K38)/100)),"",K39+K40+K42+K43+(H21*(K33+K34+K35+K36+K37+K38)/100)) -> 449.2328209
A30: 1 | B30: =IF($I$21=1,Sheet8!C7,Sheet8!G7) -> 16 | C30: =IF($I$21=1,Sheet8!D7,Sheet8!H7) -> 32 | D30: =IF($I$21=1,Sheet8!E7,Sheet8!I7) -> 24 | E30: =$H$18 -> 20.40666667 | F30: 0 | G30: 0.2055799531 | J30: DÜZELTİLMİŞ REÇETE (1 m3) | M30: 7 | V30: İri Agrega | W30: =IF(ISERROR((B22*B23+C23*C22)/(C23+B23)),"",(B22*B23+C23*C22)/(C23+B23)) -> 0 | X30: =IF(W30="","",IF(W30<=3,"f3",IF(AND(W30>3,W30<=10),"f10",IF(AND(W30>10,W30<=16),"f16",IF(AND(W30>16,W30<=22),"f22",IF(W30>22,"fbeyan")))))) -> f3
A31: 2 | B31: =IF($I$21=1,Sheet8!C8,Sheet8!G8) -> 25 | C31: =IF($I$21=1,Sheet8!D8,Sheet8!H8) -> 43 | D31: =IF($I$21=1,Sheet8!E8,Sheet8!I8) -> 34 | E31: =$H$17 -> 29.38166667 | F31: 0 | G31: 0 | H31: =SUM(F26:F31) -> 0.2912458374 | I31: =SUM(G26:G31) -> 0.6852665103 | J31: Bileşen | K31: Ağırlık (kg) | L31: Hacim (dm3) | M31: Ağırlık (g)
A32: 4 | B32: =IF($I$21=1,Sheet8!C9,Sheet8!G9) -> 37 | C32: =IF($I$21=1,Sheet8!D9,Sheet8!H9) -> 56 | D32: =IF($I$21=1,Sheet8!E9,Sheet8!I9) -> 46.5 | E32: =$H$16 -> 46.575 | F32: =IF(ISERROR(K39/$K$46),"",K39/$K$46) -> 0.1190030933 | G32: 0 | H32: =SUM(F32:F33,F35,F36) -> 0.1445037562 | I32: =SUM(G33:G34,G36,G37) -> 0.1143225806
A33: 5.6 | B33: =IF($I$21=1,Sheet8!C10,Sheet8!G10) -> 46 | C33: =IF($I$21=1,Sheet8!D10,Sheet8!H10) -> 64 | D33: =IF($I$21=1,Sheet8!E10,Sheet8!I10) -> 55 | E33: =$H$15 -> 54.48333333 | F33: 0 | G33: =IF(ISERROR(L39/1000),"",L39/1000) -> 0.09032258065 | H33: =F34 -> 0.0749379479 | I33: =G35 -> 0.17632 | J33: =$J$8 -> 1 NO | K33: =IFERROR(H43*$K$16+G43*K8,"") -> 462.5548944 | L33: =IFERROR(IF(G43=0,"",(G43+H43)),"") -> 171.3166276 | M33: =IF(ISERROR($M$30*K33),"",$M$30*K33) -> 3237.884261 | V33: Elek Arası Kalan (%)
A34: 8 | B34: =IF($I$21=1,Sheet8!C11,Sheet8!G11) -> 54 | C34: =IF($I$21=1,Sheet8!D11,Sheet8!H11) -> 71 | D34: =IF($I$21=1,Sheet8!E11,Sheet8!I11) -> 62.5 | E34: =$H$14 -> 57.81666667 | F34: =IF(ISERROR(F49/$K$46),"",F49/$K$46) -> 0.0749379479 | G34: 0 | J34: =$J$9 -> 2 NO | K34: =IFERROR(H44*$K$16+G44*K9,"") -> 370.0439155 | L34: =IFERROR(IF(G44=0,"",(G44+H44)),"") -> 137.0533021 | M34: =IF(ISERROR($M$30*K34),"",$M$30*K34) -> 2590.307409 | N34: Pompa ile iletilen betonda kullanılacak ince agrega için tane dağılım eğrileri | V34: =A9&"-"&A10 -> 31,5-22,4 | X34: =H9-H10 -> 3.566666667
A35: 11.2 | B35: =IF($I$21=1,Sheet8!C12,Sheet8!G12) -> 63.5 | C35: =IF($I$21=1,Sheet8!D12,Sheet8!H12) -> 79 | D35: =IF($I$21=1,Sheet8!E12,Sheet8!I12) -> 71.25 | E35: =$H$13 -> 68.85166667 | F35: 0.02550066285 | G35: =IF(ISERROR(G49/1000),"",G49/1000) -> 0.17632 | J35: =$J$10 -> T.TOZU | K35: 456.2333109 | L35: 166.7082103 | M35: 3193.633176 | O35: 0.063 | P35: 0 | Q35: 3 | R35: =AVERAGE(P35:Q35) -> 1.5 | S35: =($D$23*D22+$E$23*E22+$F$23*F22)/($D$23+$E$23+$F$23) -> 2.545454545 | V35: =A10&"-"&A11 -> 22,4-19 | X35: =H10-H11 -> 6.64
A36: 16 | B36: =IF($I$21=1,Sheet8!C13,Sheet8!G13) -> 73 | C36: =IF($I$21=1,Sheet8!D13,Sheet8!H13) -> 86 | D36: =IF($I$21=1,Sheet8!E13,Sheet8!I13) -> 79.5 | E36: =$H$12 -> 83.83333333 | F36: 0 | G36: 0.024 | J36: =$J$11 -> D.KUM | K36: 533.2332823 | L36: 200.1937583 | M36: 3732.632976 | O36: 0.125 | P36: 2.5 | Q36: 9 | R36: =AVERAGE(P36:Q36) -> 5.75 | S36: =($D$23*D21+$E$23*E21+$F$23*F21)/($D$23+$E$23+$F$23) -> 10.81818182 | V36: 19-16 | X36: 5.96
A37: 19 | B37: =IF($I$21=1,Sheet8!C14,Sheet8!G14) -> 80.5 | C37: =IF($I$21=1,Sheet8!D14,Sheet8!H14) -> 91 | D37: =IF($I$21=1,Sheet8!E14,Sheet8!I14) -> 85.75 | E37: =$H$11 -> 89.79333333 | F37: 0.001912549714 | J37: =$J$12 -> K.KUM | K37: 0 | M37: 0 | O37: 0.25 | P37: 8 | Q37: 25 | R37: 16.5 | S37: =($D$23*D20+$E$23*E20+$F$23*F20)/($D$23+$E$23+$F$23) -> 16.27272727 | V37: 16-11,2 | X37: 14.98166667
A38: 22.4 | B38: =IF($I$21=1,Sheet8!C15,Sheet8!G15) -> 89 | C38: =IF($I$21=1,Sheet8!D15,Sheet8!H15) -> 96 | D38: =IF($I$21=1,Sheet8!E15,Sheet8!I15) -> 92.5 | E38: =$H$10 -> 96.43333333 | F38: 0 | G38: 0.004090909091 | J38: =$J$13 -> G.D.AGR. | K38: 0 | M38: 0 | O38: 0.5 | P38: 20 | Q38: 50 | R38: 35 | S38: =($D$23*D19+$E$23*E19+$F$23*F19)/($D$23+$E$23+$F$23) -> 25 | V38: 11,2-8 | X38: 11.035
A39: 31.5 | B39: =IF($I$21=1,Sheet8!C16,Sheet8!G16) -> 100 | C39: =IF($I$21=1,Sheet8!D16,Sheet8!H16) -> 100 | D39: =IF($I$21=1,Sheet8!E16,Sheet8!I16) -> 100 | E39: =$H$9 -> 100 | F39: 1 | J39: =$J$14 -> ÇİMENTO 1 | K39: =IF(B43="","",$B$43) -> 280 | L39: =IF(ISERROR($K$39/$K$14),"",$K$39/$K$14) -> 90.32258065 | M39: 1960 | O39: 1 | P39: 44 | Q39: 74 | R39: 59 | S39: =($D$23*D18+$E$23*E18+$F$23*F18)/($D$23+$E$23+$F$23) -> 36.90909091 | V39: 8-5,6 | X39: 3.333333333
A40: Dmaks | J40: =$J$15 -> ÇİMENTO 2 | K40: =IF(B44="","",$B$44) -> 0 | L40: =IF(ISERROR($K$40/$K$15),"",$K$40/$K$15) -> 0 | M40: 0 | O40: 2 | P40: 69 | Q40: 90 | R40: 79.5 | S40: =($D$23*D17+$E$23*E17+$F$23*F17)/($D$23+$E$23+$F$23) -> 53.22727273 | V40: 5,6-4 | X40: 7.908333333
A41: BİLEŞEN MİKTARLARI (kg - dm3) | H41: Dmaks | J41: =$J$16 -> SU | K41: =IF(ISERROR($G$49-(SUM($H$43:$H$48))),"",$G$49-(SUM($H$43:$H$48))) -> 186.3146121 | L41: =IF(ISERROR($K$41/$K$16),"",$K$41/$K$16) -> 186.3146121 | M41: 1304.202284 | O41: 4 | P41: 85 | Q41: 98 | R41: 91.5 | S41: =($D$23*D16+$E$23*E16+$F$23*F16)/($D$23+$E$23+$F$23) -> 84.40909091 | V41: 4-2 | X41: 17.19333333
A42: Bileşen | B42: Ağırlık | C42: Hacim | E42: Bileşen | F42: Ağırlık | G42: Hacim | J42: =$J$18 -> UÇUCU KÜL | K42: =IF(B45="","",$B$45) -> 60 | L42: =IF(ISERROR($K$42/$K$18),"",$K$42/$K$18) -> 24 | M42: 420 | O42: 5.6 | P42: 95 | Q42: 100 | R42: 97.5 | S42: =($D$23*D15+$E$23*E15+$F$23*F15)/($D$23+$E$23+$F$23) -> 98 | V42: 2-1 | X42: 8.975
A43: =$J$14 -> ÇİMENTO 1 | B43: 280 | C43: =IF(ISERROR(B43/$K$14),"",B43/$K$14) -> 90.32258065 | E43: =$J$8 -> 1 NO | F43: =IF(ISERROR(G43*K8),"",G43*K8) -> 462.5548944 | G43: =IF(ISERROR((1000-$D$49-$G$49)*$B$23/100),"",(1000-$D$49-$G$49)*$B$23/100) -> 171.3166276 | H43: =(B54-B55)*F43/100 -> 0 | J43: =$J$19 -> S. DUMANI | K43: =IF(B46="","",$B$46) -> 0 | L43: =IF(ISERROR($K$43/$K$19),"",$K$43/$K$19) ->  | M43: 0 | O43: 8 | P43: 100 | Q43: 100 | R43: 100 | S43: =($D$23*D14+$E$23*E14+$F$23*F14)/($D$23+$E$23+$F$23) -> 100 | V43: 1-0,5 | X43: 6.55
A44: =$J$15 -> ÇİMENTO 2 | B44: 0 | C44: =IF(ISERROR(B44/$K$15),"",B44/$K$15) -> 0 | E44: =$J$9 -> 2 NO | F44: =IF(ISERROR(G44*K9),"",G44*K9) -> 370.0439155 | G44: =IF(ISERROR((1000-$D$49-$G$49)*$C$23/100),"",(1000-$D$49-$G$49)*$C$23/100) -> 137.0533021 | H44: =(C54-C55)*F44/100 -> 0 | J44: =$J$20 -> KİM. KATKI 1 | K44: =IF(B47="","",$B$47) -> 4.5 | L44: =IF(ISERROR($K$44/$K$20),"",$K$44/$K$20) -> 4.090909091 | M44: 31.5 | V44: 0,5-0,25 | X44: 4.8
A45: =$J$18 -> UÇUCU KÜL | B45: 60 | C45: =IF(ISERROR(B45/$K$18),"",B45/$K$18) -> 24 | E45: =$J$10 -> T.TOZU | F45: 460.8417282 | G45: =IF(ISERROR((1000-$D$49-$G$49)*$D$23/100),"",(1000-$D$49-$G$49)*$D$23/100) -> 171.3166276 | H45: =(D54-D55)*F45/100 -> -4.608417282 | J45: =$J$21 -> KİM. KATKI 2 | K45: =IF(B48="","",$B$48) -> 0 | L45: =IF(ISERROR($K$45/$K$21),"",$K$45/$K$21) ->  | M45: 0 | V45: 0,25-0,125 | X45: 3.061666667
A46: =$J$19 -> S. DUMANI | B46: 0 | C46: =IF(ISERROR(B46/$K$19),"",B46/$K$19) ->  | E46: =$J$11 -> D.KUM | F46: 538.6194771 | G46: =IF(ISERROR((1000-$D$49-$G$49)*$E$23/100),"",(1000-$D$49-$G$49)*$E$23/100) -> 205.5799531 | H46: =(E54-E55)*F46/100 -> -5.386194771 | J46: TOPLAM | K46: =IF(SUM(K33:K45)=0,"",SUM(K33:K45)) -> 2352.880015 | L46: =IF((SUM($L$33:$L$45)+$C$49)=0,"",(SUM($L$33:$L$45)+$C$49)) -> 1000 | M46: 16470.16011 | V46: 0,125-0,063 | X46: 4.595
A47: =$J$20 -> KİM. KATKI 1 | B47: 4.5 | C47: =IF(ISERROR(B47/$K$20),"",B47/$K$20) -> 4.090909091 | E47: =$J$12 -> K.KUM | F47: 0 | G47: =IF(ISERROR((1000-$D$49-$G$49)*$F$23/100),"",(1000-$D$49-$G$49)*$F$23/100) -> 0 | H47: =(F54-F55)*F47/100 -> 0 | V47: <0,063 | X47: =H22 -> 1.4
A48: =$J$21 -> KİM. KATKI 2 | B48: 0 | C48: =IF(ISERROR(B48/$K$21),"",B48/$K$21) ->  | E48: =$J$13 -> G.D.AGR. | F48: 0 | G48: =IF(ISERROR((1000-$D$49-$G$49)*$G$23/100),"",(1000-$D$49-$G$49)*$G$23/100) -> 0 | H48: =(G54-G55)*F48/100 -> 0 | J48: Birim Ağırlık (kg/m3) | K48: =SUM(K33:K45) -> 2352.880015 | L48: Hacim (dm3) | M48: =SUM(L33:L45)+C49 -> 1000 | N48: MALİYET HESABI
A49: HAVA | B49: 0 | C49: 20 | D49: =SUM(C43:C49) -> 138.4134897 | E49: =$J$16 -> SU | F49: =IF(ISERROR(G49*K16),"",G49*K16) -> 176.32 | G49: =IF(ISERROR($M$24*$K$16),"",$M$24*$K$16) -> 176.32 | H49: CÜRUF | N49: Bileşen | O49: Fiyat | P49: Bileşen | Q49: Fiyat | R49: Bileşen | S49: Fiyat
H50: UÇUCU KÜL | J50: Ölçülen Birim Ağırlık | X50: Toplam | Y50: =SUM(Y51:Y55) -> 0
A51: Birim Ağırlık (kg/m3) | C51: =SUM(B43:B49,F43:F49) -> 2352.880015 | E51: Hacim (dm3) | G51: =SUM(C43:C49,G43:G49) -> 1000 | J51: 3 | K51: MPa | L51: Sıcaklık (oC) | N51: =$J$14 -> ÇİMENTO 1 | P51: =$J$8 -> 1 NO | R51: =A47 -> KİM. KATKI 1 | V51: Çimento | W51: =(O51*K39+K40*O52)/1000 -> 0 | X51: =V55 -> Su | Y51: =W55 -> 0
A52: NEM DÜZELTME | H52: Su Farkı(kg) | J52: 3 GÜN | L52: Ortam | N52: =$J$15 -> ÇİMENTO 2 | P52: =$J$9 -> 2 NO | R52: =A48 -> KİM. KATKI 2 | V52: Mineral Katkı | W52: =(K42*O53+K43*O54)/1000 -> 0 | X52: =V53 -> Kimyasal Katkı | Y52: =W53 -> 0
B53: 1 NO | C53: 2 NO | D53: T.TOZU | E53: D.KUM | F53: K.KUM | G53: G.D.AGR. | J53: 7 GÜN | N53: =$J$18 -> UÇUCU KÜL | P53: =$J$10 -> T.TOZU | R53: =E48 -> G.D.AGR. | V53: Kimyasal Katkı | W53: =(K44*S51+K45*S52)/1000 -> 0 | X53: =V52 -> Mineral Katkı | Y53: =W52 -> 0
A54: Nem (%) | B54: 1 | C54: 1 | D54: 2 | E54: 2 | H54: =IF(ISERROR(K41-F49),"",K41-F49) -> 9.994612052 | J54: 28 GÜN | L54: Beton | N54: =$J$19 -> S. DUMANI | P54: =$J$11 -> D.KUM | R54: TOPLAM (TL) | S54: =IF(ISERROR(O51*K39+K40*O52+K42*O53+K43*O54+K44*S51+K45*S52+K33*Q51+K34*Q52+K35*Q53+K36*Q54+K37*Q55+K41*O55),"",IF((O51*K39+K40*O52+K42*O53+K43*O54+K44*S51+K45*S52+K33*Q51+K34*Q52+K35*Q53+K36*Q54+K37*Q55+K41*O55)=0,"",(O51*K39+K40*O52+K42*O53+K43*O54+K44*S51+K45*S52+K33*Q51+K34*Q52+K35*Q53+K36*Q54+K37*Q55+K41*O55))) ->  | V54: Agrega | W54: =(Q51*K33+K34*Q52+Q53*K35+K36*Q54+Q55*K37)/1000 -> 0 | X54: =V51 -> Çimento | Y54: =W51 -> 0
A55: Su emme (%) | B55: 1 | C55: 1 | D55: 3 | E55: 3 | J55: Slump(cm) | N55: =E49 -> SU | P55: =$J$12 -> K.KUM | V55: Su | W55: =O55*K41/1000 -> 0 | X55: =V54 -> Agrega | Y55: =W54 -> 0

Sheet Sheet2 (hidden)
C2: Klorür İçeriği Hesabı
D4: VERİLERİ GİRİNİZ
C5: Bileşenler | D5: Ağırlık, kg | E5: Klorür İçeriği | H5: TS EN 206-1'e göre Klorür İçeriği Sınıfları
C6: ='Reçete Dizayn-renkli'!J8 -> 1 NO | D6: ='Reçete Dizayn-renkli'!K33 -> 462.5548944 | E6: ='Reçete Dizayn-renkli'!L8 -> 0 | F6: % | G6: =D6*E6/100 -> 0
C7: ='Reçete Dizayn-renkli'!J9 -> 2 NO | D7: ='Reçete Dizayn-renkli'!K34 -> 370.0439155 | E7: ='Reçete Dizayn-renkli'!L9 -> 0 | F7: % | G7: =D7*E7/100 -> 0
C8: ='Reçete Dizayn-renkli'!J10 -> T.TOZU | D8: ='Reçete Dizayn-renkli'!K35 -> 456.2333109 | E8: ='Reçete Dizayn-renkli'!L10 -> 0 | F8: % | G8: 0
C9: ='Reçete Dizayn-renkli'!J11 -> D.KUM | D9: ='Reçete Dizayn-renkli'!K36 -> 533.2332823 | E9: ='Reçete Dizayn-renkli'!L11 -> 0 | F9: % | G9: 0
C10: ='Reçete Dizayn-renkli'!J12 -> K.KUM | D10: ='Reçete Dizayn-renkli'!K37 -> 0 | E10: ='Reçete Dizayn-renkli'!L12 -> 0 | F10: % | G10: 0
C11: ='Reçete Dizayn-renkli'!J13 -> G.D.AGR. | D11: ='Reçete Dizayn-renkli'!K38 -> 0 | E11: ='Reçete Dizayn-renkli'!L13 -> 0 | F11: % | G11: 0
C12: ='Reçete Dizayn-renkli'!J14 -> ÇİMENTO 1 | D12: ='Reçete Dizayn-renkli'!K39 -> 280 | E12: ='Reçete Dizayn-renkli'!L14 -> 0 | F12: % | G12: 0
C13: ='Reçete Dizayn-renkli'!J15 -> ÇİMENTO 2 | D13: ='Reçete Dizayn-renkli'!K40 -> 0 | E13: ='Reçete Dizayn-renkli'!L15 -> 0 | F13: % | G13: 0
C14: ='Reçete Dizayn-renkli'!J16 -> SU | D14: ='Reçete Dizayn-renkli'!K41 -> 186.3146121 | E14: ='Reçete Dizayn-renkli'!L16 -> 0 | F14: ppm | G14: 0
C15: ='Reçete Dizayn-renkli'!J17 -> G.D.SU | E15: ='Reçete Dizayn-renkli'!L17 -> 0 | F15: ppm | G15: 0
C16: ='Reçete Dizayn-renkli'!J18 -> UÇUCU KÜL | D16: ='Reçete Dizayn-renkli'!K42 -> 60 | E16: ='Reçete Dizayn-renkli'!L18 -> 0 | F16: % | G16: 0
C17: ='Reçete Dizayn-renkli'!J19 -> S. DUMANI | D17: ='Reçete Dizayn-renkli'!K43 -> 0 | E17: ='Reçete Dizayn-renkli'!L19 -> 0 | F17: % | G17: 0
C18: ='Reçete Dizayn-renkli'!J20 -> KİM. KATKI 1 | D18: ='Reçete Dizayn-renkli'!K44 -> 4.5 | E18: ='Reçete Dizayn-renkli'!L20 -> 0 | F18: % | G18: 0
C19: ='Reçete Dizayn-renkli'!J21 -> KİM. KATKI 2 | D19: ='Reçete Dizayn-renkli'!K45 -> 0 | E19: ='Reçete Dizayn-renkli'!L21 -> 0 | F19: % | G19: 0
C21: Klorür İçeriği (kg/m3) | F21: =SUM(G6:G19) -> 0 | G21: =F21/(D12+D13)*100 -> 0
C27: Klorür Sınıfı | D27: =IF(G21<0.1,"Cl 0.1",IF(AND(0.2>G21,G21>=0.1),"Cl 0.2",IF(AND(0.2<=G21,G21<0.4),"Cl 0.4","UYGUN DEĞİL"))) -> Cl 0.1

Sheet Sheet3 (hidden)
C7: Toplam Alkali İçeriği Hesabı
D9: VERİLERİ GİRİNİZ
C10: Bileşenler | D10: Ağırlık, kg | E10: Alkali İçeriği
C11: ='Reçete Dizayn-renkli'!J8 -> 1 NO | D11: ='Reçete Dizayn-renkli'!K33 -> 462.5548944 | E11: ='Reçete Dizayn-renkli'!M8 -> 0 | F11: % | G11: =D11*E11/100 -> 0
C12: ='Reçete Dizayn-renkli'!J9 -> 2 NO | D12: ='Reçete Dizayn-renkli'!K34 -> 370.0439155 | E12: ='Reçete Dizayn-renkli'!M9 -> 0 | F12: % | G12: =D12*E12/100 -> 0
C13: ='Reçete Dizayn-renkli'!J10 -> T.TOZU | D13: ='Reçete Dizayn-renkli'!K35 -> 456.2333109 | E13: ='Reçete Dizayn-renkli'!M10 -> 0 | F13: % | G13: 0
C14: ='Reçete Dizayn-renkli'!J11 -> D.KUM | D14: ='Reçete Dizayn-renkli'!K36 -> 533.2332823 | E14: ='Reçete Dizayn-renkli'!M11 -> 0 | F14: % | G14: 0
C15: ='Reçete Dizayn-renkli'!J12 -> K.KUM | D15: ='Reçete Dizayn-renkli'!K37 -> 0 | E15: ='Reçete Dizayn-renkli'!M12 -> 0 | F15: % | G15: 0
C16: ='Reçete Dizayn-renkli'!J13 -> G.D.AGR. | D16: ='Reçete Dizayn-renkli'!K38 -> 0 | E16: ='Reçete Dizayn-renkli'!M13 -> 0 | F16: % | G16: 0
C17: ='Reçete Dizayn-renkli'!J14 -> ÇİMENTO 1 | D17: ='Reçete Dizayn-renkli'!K39 -> 280 | E17: ='Reçete Dizayn-renkli'!M14 -> 0 | F17: % | G17: 0
C18: ='Reçete Dizayn-renkli'!J15 -> ÇİMENTO 2 | D18: ='Reçete Dizayn-renkli'!K40 -> 0 | E18: ='Reçete Dizayn-renkli'!M15 -> 0 | F18: % | G18: 0
C19: ='Reçete Dizayn-renkli'!J16 -> SU | D19: ='Reçete Dizayn-renkli'!K41 -> 186.3146121 | E19: ='Reçete Dizayn-renkli'!M16 -> 0 | F19: ppm | G19: =D19*E19/1000000 -> 0
C20: ='Reçete Dizayn-renkli'!J17 -> G.D.SU | E20: ='Reçete Dizayn-renkli'!M17 -> 0 | F20: ppm | G20: =D20*E20/1000000 -> 0
C21: ='Reçete Dizayn-renkli'!J18 -> UÇUCU KÜL | D21: ='Reçete Dizayn-renkli'!K42 -> 60 | E21: ='Reçete Dizayn-renkli'!M18 -> 0 | F21: % | G21: 0
C22: ='Reçete Dizayn-renkli'!J19 -> S. DUMANI | D22: ='Reçete Dizayn-renkli'!K43 -> 0 | E22: ='Reçete Dizayn-renkli'!M19 -> 0 | F22: % | G22: 0
C23: ='Reçete Dizayn-renkli'!J20 -> KİM. KATKI 1 | D23: ='Reçete Dizayn-renkli'!K44 -> 4.5 | E23: ='Reçete Dizayn-renkli'!M20 -> 0 | F23: % | G23: 0
C24: ='Reçete Dizayn-renkli'!J21 -> KİM. KATKI 2 | D24: ='Reçete Dizayn-renkli'!K45 -> 0 | E24: ='Reçete Dizayn-renkli'!M21 -> 0 | F24: % | G24: 0
C26: Toplam Alkali(kg/m3) | F26: =SUM(G11:G24) -> 0 | G26: =IF(F26>3,"UYGUN DEĞİL","UYGUN") -> UYGUN
E29: =F26 -> 0 | F29: kg
G40: ANASAYFA

Sheet Sheet4 (hidden)
A2: X0 | B2: - | C2: C8/10 | D2: - | E2: -
A3: XA1 | B3: 0.6 | C3: C25/30 | D3: 280 | E3: 270
A4: XA2 | B4: 0.5 | C4: C35/45 | D4: 320 | E4: 270 | G4: ≤ | H4: =LOOKUP('Reçete Dizayn-renkli'!F3,Sheet4!A2:B25) -> 0.65 | I4: =LOOKUP('Reçete Dizayn-renkli'!F3,Sheet4!A2:C25) -> C25/30 | M4: CEM I | P4: C20/25
A5: XA3 | B5: 0.45 | C5: C35/45 | D5: 320 | E5: 270 | G5: ≥ | M5: CEM II | P5: C25/30
A6: XC1 | B6: 0.7 | C6: C20/25 | D6: 240 | E6: 240 | P6: C30/37
A7: XC2 | B7: 0.65 | C7: C25/30 | D7: 260 | E7: 240 | P7: C35/45
A8: XC3 | B8: 0.6 | C8: C30/37 | D8: 270 | E8: 240 | P8: C40/50
A9: XC4 | B9: 0.55 | C9: C30/37 | D9: 280 | E9: 270 | H9: =G4&""&H4 -> ≤0,65 | I9: =G5&""&I4 -> ≥C25/30 | P9: C45/55
A10: XD1 | B10: 0.55 | C10: C30/37 | D10: 300 | E10: 270 | P10: C50/60
A11: XD2 | B11: 0.5 | C11: C35/45 | D11: 320 | E11: 270 | P11: C55/67
A12: XD3 | B12: 0.45 | C12: C35/45 | D12: 320 | E12: 270 | P12: C60/75
A13: XF1 | B13: 0.6 | C13: C25/30 | D13: 280 | E13: 270 | P13: C70/85
A14: XF2-1 | B14: 0.55 | C14: C25/30 | D14: 300 | E14: 270 | P14: C80/95
A15: XF2-2 | B15: 0.5 | C15: C35/45 | D15: 320 | E15: 270 | P15: C90/105
A16: XF3-1 | B16: 0.55 | C16: C25/30 | D16: 300 | E16: 270 | P16: C100/115
A17: XF3-2 | B17: 0.5 | C17: C35/45 | D17: 320 | E17: 270
A18: XF4 | B18: 0.5 | C18: C30/37 | D18: 320 | E18: 270
A19: XM1 | B19: 0.55 | C19: C30/37 | D19: 300 | E19: 270
A20: XM2-1 | B20: 0.55 | C20: C30/37 | D20: 300 | E20: 270
A21: XM2-2 | B21: 0.45 | C21: C35/45 | D21: 320 | E21: 270
A22: XM3 | B22: 0.45 | C22: C35/45 | D22: 320 | E22: 270
A23: XS1 | B23: 0.55 | C23: C30/37 | D23: 300 | E23: 270
A24: XS2 | B24: 0.5 | C24: C35/45 | D24: 320 | E24: 270
A25: XS3 | B25: 0.45 | C25: C35/45 | D25: 320 | E25: 270 | J25: 0.2
J26: 0.4
J27: 0.6
J28: 0.8
J29: 1
J30: 2
C40: X0 | D40: - | E40: C8/10 | F40: - | G40: -
C41: XA1 | D41: 0.6 | E41: C25/30 | F41: 280 | G41: 270
C42: XA2 | D42: 0.5 | E42: C35/45 | F42: 320 | G42: 270
C43: XA3 | D43: 0.45 | E43: C35/45 | F43: 320 | G43: 270
C44: XC1 | D44: 0.7 | E44: C20/25 | F44: 240 | G44: 240
C45: XC2 | D45: 0.65 | E45: C25/30 | F45: 260 | G45: 240
C46: XC3 | D46: 0.6 | E46: C30/37 | F46: 270 | G46: 240
C47: XC4 | D47: 0.55 | E47: C30/37 | F47: 280 | G47: 270
C48: XD1 | D48: 0.55 | E48: C30/37 | F48: 300 | G48: 270
C49: XD2 | D49: 0.5 | E49: C35/45 | F49: 320 | G49: 270
C50: XD3 | D50: 0.45 | E50: C35/45 | F50: 320 | G50: 270
C51: XF1 | D51: 0.6 | E51: C25/30 | F51: 280 | G51: 270
C52: XF2-1 | D52: 0.55 | E52: C25/30 | F52: 300 | G52: 270
C53: XF2-2 | D53: 0.5 | E53: C35/45 | F53: 320 | G53: 270
C54: XF3-1 | D54: 0.55 | E54: C25/30 | F54: 300 | G54: 270
C55: XF3-2 | D55: 0.5 | E55: C35/45 | F55: 320 | G55: 270
C56: XF4 | D56: 0.5 | E56: C30/37 | F56: 320 | G56: 270
C57: XM1 | D57: 0.55 | E57: C30/37 | F57: 300 | G57: 270
C58: XM2-1 | D58: 0.55 | E58: C30/37 | F58: 300 | G58: 270
C59: XM2-2 | D59: 0.45 | E59: C35/45 | F59: 320 | G59: 270
C60: XM3 | D60: 0.45 | E60: C35/45 | F60: 320 | G60: 270
C61: XS1 | D61: 0.55 | E61: C30/37 | F61: 300 | G61: 270
C62: XS2 | D62: 0.5 | E62: C35/45 | F62: 320 | G62: 270
C63: XS3 | D63: 0.45 | E63: C35/45 | F63: 320 | G63: 270

Sheet Sheet5 (hidden)
A1: SEÇİNİZ | B1: 18 | D1: Çevresel Etki Sınıfı | I1: En büyük su/çimento oranı | L1: En düşük beton sınıfı | O1: En az çimento (bağlayıcı) içeriği(kg/m3) | R1: Mineral katkı ile birlikte en az çimento içeriği(kg/m3) | U1: En az hava içeriği(%) | X1: Diğer özellikler
D4: TS 13515 | E4: XA1 | I4: 0.6 | L4: C25/30 | O4: 280 | R4: 270 | U4: 0 | X4: 0
D9: TS EN 206-1 | E9: A | F9: Betonun kimyasal etkilere maruz kalması | I9: 0.55 | L9: C30/37 | O9: 300 | R9: - | U9: - | X9: -
E12: 1 | F12: Az zararlı kimyasal ortam
B16: Çimento Tipi | E16: TS 13515'e GÖRE SU MİKTARI HESAPLAMASI | M16: KULLANILABİLECEK ÇİMETO TİPLERİ
M17: CEM I | N17: CEM II/B-W | O17: CEM III/B
E18: Çimento miktarı(kg) | I18: 300 | K18: =IF(B1=1,"Uygun",IF(AND(B1<>1,I18>=R4),"Uygun","Uygun Değil")) -> Uygun | M18: CEM II/A-S | N18: CEM II/A-LL | O18: CEM III/C
B19: Mineral katkı | M19: CEM II/B-S | N19: CEM II/B-LL | O19: CEM IV/A
E20: Mineral katkı miktarı(kg) | M20: CEM II/A-P | N20: CEM II/A-L | O20: CEM IV/B
M21: CEM II/B-P | N21: CEM II/B-L | O21: CEM V/A
G22: 280 | M22: CEM II/A-V | N22: CEM II/A-M | O22: CEM V/B
E23: Max. su miktarı(kg) | I23: 180 | M23: CEM II/B-V | N23: CEM II/B-M
M24: CEM II/A-W | N24: CEM III/A
B25: Uygun Değil
D27: SADECE SARI RENKLİ HÜCRELERE VERİ GİRİNİZ.

Sheet Sheet6 (hidden)
B1: TS 13515
A2: X0 | B2: - | C2: C8/10 | D2: - | E2: - | F2: - | G2: - | H2: - | I2: C12/15 | J2: - | K2: - | L2: - | M2: -
A3: XC1 | B3: 0.7 | C3: C20/25 | D3: 240 | E3: 240 | F3: - | G3: - | H3: 0.65 | I3: C20/25 | J3: 260 | K3: - | L3: - | M3: -
A4: XC2 | B4: 0.65 | C4: C25/30 | D4: 260 | E4: 240 | F4: - | G4: - | H4: 0.6 | I4: C25/30 | J4: 280 | K4: - | L4: - | M4: -
A5: XC3 | B5: 0.6 | C5: C30/37 | D5: 270 | E5: 240 | F5: - | G5: - | H5: 0.55 | I5: C30/37 | J5: 280 | K5: - | L5: - | M5: - | O5: 1 | P5: 1 | R5: 300 | S5: 0 | T5: =#VALUE! ->  | U5: =R5+T5 -> 
A6: XC4 | B6: 0.55 | C6: C30/37 | D6: 280 | E6: 270 | F6: - | G6: - | H6: 0.5 | I6: C30/37 | J6: 280 | K6: - | L6: - | M6: - | O6: YOK | P6: CEM I
A7: XD1 | B7: 0.55 | C7: C30/37 | D7: 300 | E7: 270 | F7: - | G7: - | H7: 0.55 | I7: C30/37 | J7: 300 | K7: - | L7: - | M7: - | O7: Cüruf | P7: CEM II
A8: XD2 | B8: 0.5 | C8: C35/45 | D8: 320 | E8: 270 | F8: - | G8: - | H8: 0.55 | I8: C30/37 | J8: 300 | K8: - | L8: - | M8: - | O8: Uçucu kül
A9: XD3 | B9: 0.45 | C9: C35/45 | D9: 320 | E9: 270 | F9: - | G9: - | H9: 0.45 | I9: C35/45 | J9: 320 | K9: - | L9: - | M9: - | O9: Silis dumanı
A10: XS1 | B10: 0.55 | C10: C30/37 | D10: 300 | E10: 270 | F10: - | G10: - | H10: 0.5 | I10: C30/37 | J10: 300 | K10: - | L10: - | M10: -
A11: XS2 | B11: 0.5 | C11: C35/45 | D11: 320 | E11: 270 | F11: - | G11: - | H11: 0.45 | I11: C35/45 | J11: 320 | K11: - | L11: - | M11: -
A12: XS3 | B12: 0.45 | C12: C35/45 | D12: 320 | E12: 270 | F12: - | G12: - | H12: 0.45 | I12: C35/45 | J12: 340 | K12: - | L12: - | M12: -
A13: XF1 | B13: 0.6 | C13: C25/30 | D13: 280 | E13: 270 | F13: - | G13: F4 | H13: 0.55 | I13: C30/37 | J13: 300 | K13: - | L13: - | M13: -
A14: XF2-1 | B14: 0.55 | C14: C25/30 | D14: 300 | E14: 270 | F14: Dmaks=16mm için %4.5 / Dmaks=32mm için %4 | G14: MS25 | H14: 0.55 | I14: C25/30 | J14: 300 | K14: - | L14: 4 | M14: -
A15: XF2-2 | B15: 0.5 | C15: C35/45 | D15: 320 | E15: 270 | G15: MS25 | H15: 0.55 | I15: C25/30 | J15: 300 | K15: - | L15: 4 | M15: -
A16: XF3-1 | B16: 0.55 | C16: C25/30 | D16: 300 | E16: 270 | F16: Dmaks=16mm için %4.5 / Dmaks=32mm için %4 | G16: F2 | H16: 0.5 | I16: C30/37 | J16: 320 | K16: - | L16: 4 | M16: -
A17: XF3-2 | B17: 0.5 | C17: C35/45 | D17: 320 | E17: 270 | G17: F2 | H17: 0.5 | I17: C30/37 | J17: 320 | K17: - | L17: 4 | M17: -
A18: XF4 | B18: 0.5 | C18: C30/37 | D18: 320 | E18: 270 | F18: Dmaks=16mm için %4.5 / Dmaks=32mm için %4 | G18: MS18 | H18: 0.45 | I18: C30/37 | J18: 340 | K18: - | L18: 4 | M18: -
A19: XA1 | B19: 0.6 | C19: C25/30 | D19: 280 | E19: 270 | H19: 0.55 | I19: C30/37 | J19: 300 | K19: - | L19: - | M19: -
A20: XA2 | B20: 0.5 | C20: C35/45 | D20: 320 | E20: 270 | H20: 0.5 | I20: C30/37 | J20: 320 | K20: - | L20: - | M20: -
A21: XA3 | B21: 0.45 | C21: C35/45 | D21: 320 | E21: 270 | H21: 0.45 | I21: C35/45 | J21: 360 | K21: - | L21: - | M21: -
A22: XM1 | B22: 0.55 | C22: C30/37 | D22: 300 | E22: 270 | H22: - | I22: - | J22: - | K22: - | L22: - | M22: -
A23: XM2-1 | B23: 0.55 | C23: C30/37 | D23: 300 | E23: 270 | H23: - | I23: - | J23: - | K23: - | L23: - | M23: -
A24: XM2-2 | B24: 0.45 | C24: C35/45 | D24: 320 | E24: 270 | H24: - | I24: - | J24: - | K24: - | L24: - | M24: -
A25: XM3 | B25: 0.45 | C25: C35/45 | D25: 320 | E25: 270 | H25: - | I25: - | J25: - | K25: - | L25: - | M25: -
A27: 0.5 | B27: 0.55 | C27: =A27*$U$5 ->  | D27: 165 | E27: =C27&" - "&D27 -> 
A28: 0.45 | B28: 0.55 | C28: =A28*$U$5 ->  | D28: 165 | E28: =C28&" - "&D28 -> 
A29: 0.5 | B29: 0.55 | C29: =A29*$U$5 ->  | D29: 165 | E29: =C29&" - "&D29 -> 

Sheet Sheet7 (hidden)
A1: BETON REÇETE DİZAYN PROGRAMI
A3: Beton Sınıfı | B3: ='Reçete Dizayn-renkli'!B3 -> C30/37 | D3: Çev. Etki Sınıfı | F3: ='Reçete Dizayn-renkli'!F3 -> XC2 | J3: Klorür Sınıfı | L3: ='Reçete Dizayn-renkli'!L3 ->  | M3: ='Reçete Dizayn-renkli'!M3 -> 0
A4: Çimento Sınıfı | B4: ='Reçete Dizayn-renkli'!B4 -> CEM I | D4: Min.Katkı k değeri | F4: ='Reçete Dizayn-renkli'!F4 -> 0.4 | J4: Alkali Miktarı(kg/m3) | L4: ='Reçete Dizayn-renkli'!L4 ->  | M4: ='Reçete Dizayn-renkli'!M4 -> 0
A6: AGREGA GRADASYON HESAPLAMASI | J6: BİLEŞEN ÖZELLİKLERİ
A7: ELEK EBATI | B7: ELEKTEN GEÇEN MALZEME (%) | H7: KARIŞIM | K7: Öz.Ağırlık | L7: Cl(%) | M7: Alkali(%)
A8: ( mm ) | B8: 1 NO | C8: 2 NO | D8: T.TOZU | E8: D.KUM | F8: K.KUM | G8: G.D.AGR. | J8: 1 NO | K8: ='Reçete Dizayn-renkli'!K8 -> 2.7 | L8: ='Reçete Dizayn-renkli'!L8 -> 0 | M8: ='Reçete Dizayn-renkli'!M8 -> 0
A9: 31.5 | B9: ='Reçete Dizayn-renkli'!B9 -> 100 | C9: ='Reçete Dizayn-renkli'!C9 -> 100 | D9: ='Reçete Dizayn-renkli'!D9 -> 100 | E9: ='Reçete Dizayn-renkli'!E9 -> 100 | F9: ='Reçete Dizayn-renkli'!F9 -> 0 | G9: ='Reçete Dizayn-renkli'!G9 -> 0 | H9: =($B$22*B9+$C$22*C9+$D$22*D9+$E$22*E9+$F$22*F9+$G$22*G9)/100 -> 100 | J9: 2 NO | K9: ='Reçete Dizayn-renkli'!K9 -> 2.7 | L9: ='Reçete Dizayn-renkli'!L9 -> 0 | M9: ='Reçete Dizayn-renkli'!M9 -> 0
A10: 22.4 | B10: ='Reçete Dizayn-renkli'!B10 -> 100 | C10: ='Reçete Dizayn-renkli'!C10 -> 82.16666667 | D10: ='Reçete Dizayn-renkli'!D10 -> 100 | E10: ='Reçete Dizayn-renkli'!E10 -> 100 | F10: ='Reçete Dizayn-renkli'!F10 -> 0 | G10: ='Reçete Dizayn-renkli'!G10 -> 0 | H10: =($B$22*B10+$C$22*C10+$D$22*D10+$E$22*E10+$F$22*F10+$G$22*G10)/100 -> 96.43333333 | J10: T.TOZU | K10: ='Reçete Dizayn-renkli'!K10 -> 2.69 | L10: ='Reçete Dizayn-renkli'!L10 -> 0 | M10: ='Reçete Dizayn-renkli'!M10 -> 0
A11: 19 | B11: ='Reçete Dizayn-renkli'!B11 -> 100 | C11: ='Reçete Dizayn-renkli'!C11 -> 48.96666667 | D11: ='Reçete Dizayn-renkli'!D11 -> 100 | E11: ='Reçete Dizayn-renkli'!E11 -> 100 | F11: ='Reçete Dizayn-renkli'!F11 -> 0 | G11: ='Reçete Dizayn-renkli'!G11 -> 0 | H11: 89.79333333 | J11: D.KUM | K11: ='Reçete Dizayn-renkli'!K11 -> 2.62 | L11: ='Reçete Dizayn-renkli'!L11 -> 0 | M11: ='Reçete Dizayn-renkli'!M11 -> 0
A12: 16 | B12: ='Reçete Dizayn-renkli'!B12 -> 98 | C12: ='Reçete Dizayn-renkli'!C12 -> 21.66666667 | D12: ='Reçete Dizayn-renkli'!D12 -> 100 | E12: ='Reçete Dizayn-renkli'!E12 -> 100 | F12: ='Reçete Dizayn-renkli'!F12 -> 0 | G12: ='Reçete Dizayn-renkli'!G12 -> 0 | H12: 83.83333333 | J12: K.KUM | K12: ='Reçete Dizayn-renkli'!K12 -> 2.61 | L12: ='Reçete Dizayn-renkli'!L12 -> 0 | M12: ='Reçete Dizayn-renkli'!M12 -> 0
A13: 11.2 | B13: ='Reçete Dizayn-renkli'!B13 -> 54.63333333 | C13: ='Reçete Dizayn-renkli'!C13 -> 0.9666666667 | D13: ='Reçete Dizayn-renkli'!D13 -> 100 | E13: ='Reçete Dizayn-renkli'!E13 -> 100 | F13: ='Reçete Dizayn-renkli'!F13 -> 0 | G13: ='Reçete Dizayn-renkli'!G13 -> 0 | H13: 68.85166667 | J13: G.D.AGR. | K13: ='Reçete Dizayn-renkli'!K13 -> 0 | L13: ='Reçete Dizayn-renkli'!L13 -> 0 | M13: ='Reçete Dizayn-renkli'!M13 -> 0
A14: 8 | B14: ='Reçete Dizayn-renkli'!B14 -> 11 | C14: ='Reçete Dizayn-renkli'!C14 -> 0.3333333333 | D14: ='Reçete Dizayn-renkli'!D14 -> 100 | E14: ='Reçete Dizayn-renkli'!E14 -> 100 | F14: ='Reçete Dizayn-renkli'!F14 -> 0 | G14: ='Reçete Dizayn-renkli'!G14 -> 0 | H14: 57.81666667 | J14: ÇİMENTO 1 | K14: ='Reçete Dizayn-renkli'!K14 -> 3.1 | L14: ='Reçete Dizayn-renkli'!L14 -> 0 | M14: ='Reçete Dizayn-renkli'!M14 -> 0
A15: 5.6 | B15: ='Reçete Dizayn-renkli'!B15 -> 2.066666667 | C15: ='Reçete Dizayn-renkli'!C15 -> 0.3333333333 | D15: ='Reçete Dizayn-renkli'!D15 -> 95.6 | E15: ='Reçete Dizayn-renkli'!E15 -> 100 | F15: ='Reçete Dizayn-renkli'!F15 -> 0 | G15: ='Reçete Dizayn-renkli'!G15 -> 0 | H15: 54.48333333 | J15: ÇİMENTO 2 | K15: ='Reçete Dizayn-renkli'!K15 -> 3.04 | L15: ='Reçete Dizayn-renkli'!L15 -> 0 | M15: ='Reçete Dizayn-renkli'!M15 -> 0
A16: 4 | B16: ='Reçete Dizayn-renkli'!B16 -> 0.3333333333 | C16: ='Reçete Dizayn-renkli'!C16 -> 0.3333333333 | D16: ='Reçete Dizayn-renkli'!D16 -> 77.7 | E16: ='Reçete Dizayn-renkli'!E16 -> 90 | F16: ='Reçete Dizayn-renkli'!F16 -> 0 | G16: ='Reçete Dizayn-renkli'!G16 -> 0 | H16: 46.575 | J16: SU | K16: ='Reçete Dizayn-renkli'!K16 -> 1 | L16: ='Reçete Dizayn-renkli'!L16 -> 0 | M16: ='Reçete Dizayn-renkli'!M16 -> 0
A17: 2 | B17: ='Reçete Dizayn-renkli'!B17 -> 0.2666666667 | C17: ='Reçete Dizayn-renkli'!C17 -> 0.2 | D17: ='Reçete Dizayn-renkli'!D17 -> 55.9 | E17: ='Reçete Dizayn-renkli'!E17 -> 51 | F17: ='Reçete Dizayn-renkli'!F17 -> 0 | G17: ='Reçete Dizayn-renkli'!G17 -> 0 | H17: 29.38166667 | J17: G.D.SU | K17: ='Reçete Dizayn-renkli'!K17 -> 1.03 | L17: ='Reçete Dizayn-renkli'!L17 -> 0 | M17: ='Reçete Dizayn-renkli'!M17 -> 0
A18: 1 | B18: ='Reçete Dizayn-renkli'!B18 -> 0.2666666667 | C18: ='Reçete Dizayn-renkli'!C18 -> 0.2 | D18: ='Reçete Dizayn-renkli'!D18 -> 39.2 | E18: ='Reçete Dizayn-renkli'!E18 -> 35 | F18: ='Reçete Dizayn-renkli'!F18 -> 0 | G18: ='Reçete Dizayn-renkli'!G18 -> 0 | H18: 20.40666667 | J18: CÜRUF | K18: ='Reçete Dizayn-renkli'!K18 -> 2.5 | L18: ='Reçete Dizayn-renkli'!L18 -> 0 | M18: ='Reçete Dizayn-renkli'!M18 -> 0
A19: 0.5 | B19: ='Reçete Dizayn-renkli'!B19 -> 0.2666666667 | C19: ='Reçete Dizayn-renkli'!C19 -> 0.2 | D19: ='Reçete Dizayn-renkli'!D19 -> 23.8 | E19: ='Reçete Dizayn-renkli'!E19 -> 26 | F19: ='Reçete Dizayn-renkli'!F19 -> 0 | G19: ='Reçete Dizayn-renkli'!G19 -> 0 | H19: 13.85666667 | J19: S. DUMANI | K19: ='Reçete Dizayn-renkli'!K19 -> 0 | L19: ='Reçete Dizayn-renkli'!L19 -> 0 | M19: ='Reçete Dizayn-renkli'!M19 -> 0
A20: 0.25 | B20: ='Reçete Dizayn-renkli'!B20 -> 0.2666666667 | C20: ='Reçete Dizayn-renkli'!C20 -> 0.2 | D20: ='Reçete Dizayn-renkli'!D20 -> 11.8 | E20: ='Reçete Dizayn-renkli'!E20 -> 20 | F20: ='Reçete Dizayn-renkli'!F20 -> 0 | G20: ='Reçete Dizayn-renkli'!G20 -> 0 | H20: 9.056666667 | J20: KİM. KATKI 1 | K20: ='Reçete Dizayn-renkli'!K20 -> 1.1 | L20: ='Reçete Dizayn-renkli'!L20 -> 0 | M20: ='Reçete Dizayn-renkli'!M20 -> 0
A21: 0.125 | B21: ='Reçete Dizayn-renkli'!B21 -> 0.1 | C21: ='Reçete Dizayn-renkli'!C21 -> 0.1 | D21: ='Reçete Dizayn-renkli'!D21 -> 7 | E21: ='Reçete Dizayn-renkli'!E21 -> 14 | F21: ='Reçete Dizayn-renkli'!F21 -> 0 | G21: ='Reçete Dizayn-renkli'!G21 -> 0 | H21: 5.995 | J21: KİM. KATKI 2 | K21: ='Reçete Dizayn-renkli'!K21 -> 0 | L21: ='Reçete Dizayn-renkli'!L21 -> 0 | M21: ='Reçete Dizayn-renkli'!M21 -> 0
A22: MİKTAR(%) | B22: ='Reçete Dizayn-renkli'!B23 -> 25 | C22: ='Reçete Dizayn-renkli'!C23 -> 20 | D22: ='Reçete Dizayn-renkli'!D23 -> 25 | E22: ='Reçete Dizayn-renkli'!E23 -> 30 | F22: ='Reçete Dizayn-renkli'!F23 -> 0 | G22: ='Reçete Dizayn-renkli'!G23 -> 0 | H22: =SUM(B22:G23) -> 100 | M22: =IF(K23>Sheet4!H4,Sheet4!H9,"") -> 
B23: ='Reçete Dizayn-renkli'!B24 -> 0 | C23: ='Reçete Dizayn-renkli'!C24 -> 0 | D23: ='Reçete Dizayn-renkli'!D24 -> 0 | E23: ='Reçete Dizayn-renkli'!E24 -> 0 | F23: ='Reçete Dizayn-renkli'!F24 -> 0 | G23: ='Reçete Dizayn-renkli'!G24 -> 0 | J23: Su/Çimento | K23: ='Reçete Dizayn-renkli'!K24 -> 0.58 | L23: Su(kg) | M23: ='Reçete Dizayn-renkli'!M24 -> 176.32
A24: ='Reçete Dizayn-renkli'!A26 -> 0.063 | B24: ='Reçete Dizayn-renkli'!B26 -> 1 | C24: ='Reçete Dizayn-renkli'!C26 -> 5 | D24: ='Reçete Dizayn-renkli'!D26 -> 3 | E24: ='Reçete Dizayn-renkli'!E26 -> 1.4 | F24: ='Reçete Dizayn-renkli'!F26 -> 0.07281145934 | G24: ='Reçete Dizayn-renkli'!G26 -> 0 | H24: ='Reçete Dizayn-renkli'!H26 -> 0 | K24: ='Reçete Dizayn-renkli'!K26 -> 0 | M24: ='Reçete Dizayn-renkli'!M26 -> 0
A25: ='Reçete Dizayn-renkli'!A27 -> 0.125 | B25: ='Reçete Dizayn-renkli'!B27 -> 2.5 | C25: ='Reçete Dizayn-renkli'!C27 -> 8.5 | D25: ='Reçete Dizayn-renkli'!D27 -> 5.5 | E25: ='Reçete Dizayn-renkli'!E27 -> 5.995 | F25: ='Reçete Dizayn-renkli'!F27 -> 0.05824916747 | G25: ='Reçete Dizayn-renkli'!G27 -> 0.1713166276 | H25: ='Reçete Dizayn-renkli'!H27 -> Agrega
A26: ='Reçete Dizayn-renkli'!A28 -> 0.25 | B26: ='Reçete Dizayn-renkli'!B28 -> 6 | C26: ='Reçete Dizayn-renkli'!C28 -> 15 | D26: ='Reçete Dizayn-renkli'!D28 -> 10.5 | E26: ='Reçete Dizayn-renkli'!E28 -> 9.056666667 | F26: ='Reçete Dizayn-renkli'!F28 -> 0.07281145934 | G26: ='Reçete Dizayn-renkli'!G28 -> 0.1370533021 | H26: ='Reçete Dizayn-renkli'!H28 -> Bağlayıcı
A27: ='Reçete Dizayn-renkli'!A29 -> 0.5 | B27: ='Reçete Dizayn-renkli'!B29 -> 10 | C27: ='Reçete Dizayn-renkli'!C29 -> 22 | D27: ='Reçete Dizayn-renkli'!D29 -> 16 | E27: ='Reçete Dizayn-renkli'!E29 -> 13.85666667 | F27: ='Reçete Dizayn-renkli'!F29 -> 0.08737375121 | G27: ='Reçete Dizayn-renkli'!G29 -> 0.1713166276 | H27: ='Reçete Dizayn-renkli'!H29 -> Su
A28: ='Reçete Dizayn-renkli'!A30 -> 1 | B28: ='Reçete Dizayn-renkli'!B30 -> 16 | C28: ='Reçete Dizayn-renkli'!C30 -> 32 | D28: ='Reçete Dizayn-renkli'!D30 -> 24 | E28: ='Reçete Dizayn-renkli'!E30 -> 20.40666667 | F28: ='Reçete Dizayn-renkli'!F30 -> 0 | G28: ='Reçete Dizayn-renkli'!G30 -> 0.2055799531 | H28: ='Reçete Dizayn-renkli'!H30 -> 0
A29: ='Reçete Dizayn-renkli'!A31 -> 2 | B29: ='Reçete Dizayn-renkli'!B31 -> 25 | C29: ='Reçete Dizayn-renkli'!C31 -> 43 | D29: ='Reçete Dizayn-renkli'!D31 -> 34 | E29: ='Reçete Dizayn-renkli'!E31 -> 29.38166667 | F29: ='Reçete Dizayn-renkli'!F31 -> 0 | G29: ='Reçete Dizayn-renkli'!G31 -> 0 | H29: ='Reçete Dizayn-renkli'!H31 -> 0.2912458374 | I29: =SUM(G24:G29) -> 0.6852665103
A30: ='Reçete Dizayn-renkli'!A32 -> 4 | B30: ='Reçete Dizayn-renkli'!B32 -> 37 | C30: ='Reçete Dizayn-renkli'!C32 -> 56 | D30: ='Reçete Dizayn-renkli'!D32 -> 46.5 | E30: ='Reçete Dizayn-renkli'!E32 -> 46.575 | F30: ='Reçete Dizayn-renkli'!F32 -> 0.1190030933 | G30: ='Reçete Dizayn-renkli'!G32 -> 0 | H30: ='Reçete Dizayn-renkli'!H32 -> 0.1445037562 | I30: =SUM(G30:G31,G33,G34) -> 0.2906425806
A31: ='Reçete Dizayn-renkli'!A33 -> 5.6 | B31: ='Reçete Dizayn-renkli'!B33 -> 46 | C31: ='Reçete Dizayn-renkli'!C33 -> 64 | D31: ='Reçete Dizayn-renkli'!D33 -> 55 | E31: ='Reçete Dizayn-renkli'!E33 -> 54.48333333 | F31: ='Reçete Dizayn-renkli'!F33 -> 0 | G31: ='Reçete Dizayn-renkli'!G33 -> 0.09032258065 | H31: ='Reçete Dizayn-renkli'!H33 -> 0.0749379479 | I31: =G32 -> 0
A32: ='Reçete Dizayn-renkli'!A34 -> 8 | B32: ='Reçete Dizayn-renkli'!B34 -> 54 | C32: ='Reçete Dizayn-renkli'!C34 -> 71 | D32: ='Reçete Dizayn-renkli'!D34 -> 62.5 | E32: ='Reçete Dizayn-renkli'!E34 -> 57.81666667 | F32: ='Reçete Dizayn-renkli'!F34 -> 0.0749379479 | G32: ='Reçete Dizayn-renkli'!G34 -> 0 | H32: ='Reçete Dizayn-renkli'!H34 -> 0 | J32: Kompasite | L32: ='Reçete Dizayn-renkli'!L34 -> 137.0533021 | M32: ='Reçete Dizayn-renkli'!M34 -> 2590.307409
A33: ='Reçete Dizayn-renkli'!A35 -> 11.2 | B33: ='Reçete Dizayn-renkli'!B35 -> 63.5 | C33: ='Reçete Dizayn-renkli'!C35 -> 79 | D33: ='Reçete Dizayn-renkli'!D35 -> 71.25 | E33: ='Reçete Dizayn-renkli'!E35 -> 68.85166667 | F33: ='Reçete Dizayn-renkli'!F35 -> 0.02550066285 | G33: ='Reçete Dizayn-renkli'!G35 -> 0.17632 | H33: ='Reçete Dizayn-renkli'!H35 -> 0
A34: ='Reçete Dizayn-renkli'!A36 -> 16 | B34: ='Reçete Dizayn-renkli'!B36 -> 73 | C34: ='Reçete Dizayn-renkli'!C36 -> 86 | D34: ='Reçete Dizayn-renkli'!D36 -> 79.5 | E34: ='Reçete Dizayn-renkli'!E36 -> 83.83333333 | F34: ='Reçete Dizayn-renkli'!F36 -> 0 | G34: ='Reçete Dizayn-renkli'!G36 -> 0.024 | H34: ='Reçete Dizayn-renkli'!H36 -> 0 | J34: DÜZELTİLMİŞ REÇETE | M34: ='Reçete Dizayn-renkli'!M36 -> 3732.632976
A35: ='Reçete Dizayn-renkli'!A37 -> 19 | B35: ='Reçete Dizayn-renkli'!B37 -> 80.5 | C35: ='Reçete Dizayn-renkli'!C37 -> 91 | D35: ='Reçete Dizayn-renkli'!D37 -> 85.75 | E35: ='Reçete Dizayn-renkli'!E37 -> 89.79333333 | F35: ='Reçete Dizayn-renkli'!F37 -> 0.001912549714 | G35: ='Reçete Dizayn-renkli'!G37 ->  | H35: ='Reçete Dizayn-renkli'!H37 -> 0 | K35: Ağırlık (kg) | L35: Hacim (dm3) | M35: Ağırlık (g)
A36: ='Reçete Dizayn-renkli'!A38 -> 22.4 | B36: ='Reçete Dizayn-renkli'!B38 -> 89 | C36: ='Reçete Dizayn-renkli'!C38 -> 96 | D36: ='Reçete Dizayn-renkli'!D38 -> 92.5 | E36: ='Reçete Dizayn-renkli'!E38 -> 96.43333333 | F36: ='Reçete Dizayn-renkli'!F38 -> 0 | G36: ='Reçete Dizayn-renkli'!G38 -> 0.004090909091 | H36: ='Reçete Dizayn-renkli'!H38 -> 0 | J36: =J8 -> 1 NO | K36: ='Reçete Dizayn-renkli'!K38 -> 0 | L36: ='Reçete Dizayn-renkli'!L38 ->  | M36: ='Reçete Dizayn-renkli'!M38 -> 0
A37: ='Reçete Dizayn-renkli'!A39 -> 31.5 | B37: ='Reçete Dizayn-renkli'!B39 -> 100 | C37: ='Reçete Dizayn-renkli'!C39 -> 100 | D37: ='Reçete Dizayn-renkli'!D39 -> 100 | E37: ='Reçete Dizayn-renkli'!E39 -> 100 | F37: ='Reçete Dizayn-renkli'!F39 -> 1 | G37: ='Reçete Dizayn-renkli'!G39 ->  | H37: ='Reçete Dizayn-renkli'!H39 -> 0 | J37: =J9 -> 2 NO | K37: ='Reçete Dizayn-renkli'!K39 -> 280 | L37: ='Reçete Dizayn-renkli'!L39 -> 90.32258065 | M37: ='Reçete Dizayn-renkli'!M39 -> 1960
A38: BİLEŞEN MİKTARLARI | J38: T.TOZU | K38: ='Reçete Dizayn-renkli'!K41 -> 186.3146121 | L38: ='Reçete Dizayn-renkli'!L41 -> 186.3146121 | M38: ='Reçete Dizayn-renkli'!M41 -> 1304.202284
B39: Ağırlık (kg) | C39: Hacim (dm3) | F39: Ağırlık (kg) | G39: Hacim (dm3) | J39: D.KUM | K39: ='Reçete Dizayn-renkli'!K42 -> 60 | L39: ='Reçete Dizayn-renkli'!L42 -> 24 | M39: ='Reçete Dizayn-renkli'!M42 -> 420
A40: =$J$14 -> ÇİMENTO 1 | B40: ='Reçete Dizayn-renkli'!B43 -> 280 | C40: ='Reçete Dizayn-renkli'!C43 -> 90.32258065 | E40: =$J$8 -> 1 NO | F40: ='Reçete Dizayn-renkli'!F43 -> 462.5548944 | G40: ='Reçete Dizayn-renkli'!G43 -> 171.3166276 | H40: ='Reçete Dizayn-renkli'!H43 -> 0 | J40: K.KUM | K40: ='Reçete Dizayn-renkli'!K43 -> 0 | L40: ='Reçete Dizayn-renkli'!L43 ->  | M40: ='Reçete Dizayn-renkli'!M43 -> 0
A41: =$J$15 -> ÇİMENTO 2 | B41: ='Reçete Dizayn-renkli'!B44 -> 0 | C41: ='Reçete Dizayn-renkli'!C44 -> 0 | E41: =$J$9 -> 2 NO | F41: ='Reçete Dizayn-renkli'!F44 -> 370.0439155 | G41: ='Reçete Dizayn-renkli'!G44 -> 137.0533021 | H41: ='Reçete Dizayn-renkli'!H44 -> 0 | J41: G.D.AGR. | K41: ='Reçete Dizayn-renkli'!K44 -> 4.5 | L41: ='Reçete Dizayn-renkli'!L44 -> 4.090909091 | M41: ='Reçete Dizayn-renkli'!M44 -> 31.5
A42: =$J$18 -> CÜRUF | B42: ='Reçete Dizayn-renkli'!B45 -> 60 | C42: ='Reçete Dizayn-renkli'!C45 -> 24 | E42: =$J$10 -> T.TOZU | F42: ='Reçete Dizayn-renkli'!F45 -> 460.8417282 | G42: ='Reçete Dizayn-renkli'!G45 -> 171.3166276 | H42: ='Reçete Dizayn-renkli'!H45 -> -4.608417282 | J42: ÇİMENTO 1 | K42: ='Reçete Dizayn-renkli'!K45 -> 0 | L42: ='Reçete Dizayn-renkli'!L45 ->  | M42: ='Reçete Dizayn-renkli'!M45 -> 0
A43: =$J$19 -> S. DUMANI | B43: ='Reçete Dizayn-renkli'!B46 -> 0 | C43: ='Reçete Dizayn-renkli'!C46 ->  | E43: =$J$11 -> D.KUM | F43: ='Reçete Dizayn-renkli'!F46 -> 538.6194771 | G43: ='Reçete Dizayn-renkli'!G46 -> 205.5799531 | H43: ='Reçete Dizayn-renkli'!H46 -> -5.386194771 | J43: ÇİMENTO 2 | K43: ='Reçete Dizayn-renkli'!K46 -> 2352.880015 | L43: ='Reçete Dizayn-renkli'!L46 -> 1000 | M43: ='Reçete Dizayn-renkli'!M46 -> 16470.16011
A44: =$J$20 -> KİM. KATKI 1 | B44: ='Reçete Dizayn-renkli'!B47 -> 4.5 | C44: ='Reçete Dizayn-renkli'!C47 -> 4.090909091 | E44: =$J$12 -> K.KUM | F44: ='Reçete Dizayn-renkli'!F47 -> 0 | G44: ='Reçete Dizayn-renkli'!G47 -> 0 | H44: ='Reçete Dizayn-renkli'!H47 -> 0 | J44: SU | K44: ='Reçete Dizayn-renkli'!K47 -> 0 | L44: ='Reçete Dizayn-renkli'!L47 -> 0 | M44: ='Reçete Dizayn-renkli'!M47 -> 0
A45: =$J$21 -> KİM. KATKI 2 | B45: ='Reçete Dizayn-renkli'!B48 -> 0 | C45: ='Reçete Dizayn-renkli'!C48 ->  | E45: =$J$13 -> G.D.AGR. | F45: ='Reçete Dizayn-renkli'!F48 -> 0 | G45: ='Reçete Dizayn-renkli'!G48 -> 0 | H45: ='Reçete Dizayn-renkli'!H48 -> 0 | J45: =J18 -> CÜRUF | K45: ='Reçete Dizayn-renkli'!K48 -> 2352.880015 | L45: ='Reçete Dizayn-renkli'!L48 -> Hacim (dm3) | M45: ='Reçete Dizayn-renkli'!M48 -> 1000
A46: HAVA | B46: ='Reçete Dizayn-renkli'!B49 -> 0 | C46: ='Reçete Dizayn-renkli'!C49 -> 20 | E46: =$J$16 -> SU | F46: ='Reçete Dizayn-renkli'!F49 -> 176.32 | G46: ='Reçete Dizayn-renkli'!G49 -> 176.32 | H46: CÜRUF | J46: =J19 -> S. DUMANI | K46: ='Reçete Dizayn-renkli'!K49 -> 0 | L46: ='Reçete Dizayn-renkli'!L49 -> 0 | M46: ='Reçete Dizayn-renkli'!M49 -> 0
H47: UÇUCU KÜL | J47: =J20 -> KİM. KATKI 1 | K47: ='Reçete Dizayn-renkli'!K50 -> 0 | L47: ='Reçete Dizayn-renkli'!L50 -> 0 | M47: ='Reçete Dizayn-renkli'!M50 -> 0
A48: Birim Ağırlık (kg/m3) | C48: ='Reçete Dizayn-renkli'!C51 -> 2352.880015 | D48: ='Reçete Dizayn-renkli'!D51 -> 0 | E48: Hacim (dm3) | G48: ='Reçete Dizayn-renkli'!G51 -> 1000 | H48: ='Reçete Dizayn-renkli'!H51 -> 0 | J48: =J21 -> KİM. KATKI 2 | K48: ='Reçete Dizayn-renkli'!K51 -> MPa | L48: ='Reçete Dizayn-renkli'!L51 -> Sıcaklık (oC) | M48: ='Reçete Dizayn-renkli'!M51 -> 0
A49: NEM DÜZELTME | J49: TOPLAM | K49: ='Reçete Dizayn-renkli'!K52 -> 0 | L49: ='Reçete Dizayn-renkli'!L52 -> Ortam | M49: ='Reçete Dizayn-renkli'!M52 -> 0
B50: 1 NO | C50: 2 NO | D50: T.TOZU | E50: D.KUM | F50: K.KUM | G50: G.D.AGR.
A51: Nem (%) | B51: ='Reçete Dizayn-renkli'!B54 -> 1 | C51: ='Reçete Dizayn-renkli'!C54 -> 1 | D51: ='Reçete Dizayn-renkli'!D54 -> 2 | E51: ='Reçete Dizayn-renkli'!E54 -> 2 | F51: ='Reçete Dizayn-renkli'!F54 -> 0 | G51: ='Reçete Dizayn-renkli'!G54 -> 0 | J51: Birim Ağırlık (kg/m3) | K51: ='Reçete Dizayn-renkli'!K54 -> 0 | L51: Hacim (dm3) | M51: ='Reçete Dizayn-renkli'!M54 -> 0
A52: Su emme (%) | B52: ='Reçete Dizayn-renkli'!B55 -> 1 | C52: ='Reçete Dizayn-renkli'!C55 -> 1 | D52: ='Reçete Dizayn-renkli'!D55 -> 3 | E52: ='Reçete Dizayn-renkli'!E55 -> 3 | F52: ='Reçete Dizayn-renkli'!F55 -> 0 | G52: ='Reçete Dizayn-renkli'!G55 -> 0 | K52: ='Reçete Dizayn-renkli'!K55 -> 0 | M52: ='Reçete Dizayn-renkli'!M55 -> 0

Sheet Sheet8 (hidden)
A3: 0.125 | B3: 0.063 | C3: 1 | D3: 5 | E3: =AVERAGE(C3:D3) -> 3 | G3: 1 | H3: 5 | I3: =AVERAGE(G3:H3) -> 3
A4: 0.25 | B4: 0.125 | C4: 2.5 | D4: 8.5 | E4: 5.5 | G4: 2.5 | H4: 8.5 | I4: =AVERAGE(G4:H4) -> 5.5
A5: 0.5 | B5: 0.25 | C5: 6 | D5: 15 | E5: 10.5 | G5: 6 | H5: 16 | I5: =AVERAGE(G5:H5) -> 11
A6: 1 | B6: 0.5 | C6: 10 | D6: 22 | E6: 16 | G6: 10 | H6: 23 | I6: 16.5
A7: 2 | B7: 1 | C7: 16 | D7: 32 | E7: 24 | G7: 17 | H7: 33 | I7: 25
A8: 4 | B8: 2 | C8: 25 | D8: 43 | E8: 34 | G8: 26 | H8: 43 | I8: 34.5
A9: 5.6 | B9: 4 | C9: 37 | D9: 56 | E9: 46.5 | G9: 37 | H9: 56 | I9: 46.5
A10: 8 | B10: 5.6 | C10: 46 | D10: 64 | E10: 55 | G10: 45 | H10: 63 | I10: 54
A11: 11.2 | B11: 8 | C11: 54 | D11: 71 | E11: 62.5 | G11: 52 | H11: 69 | I11: 60.5
A12: 16 | B12: 11.2 | C12: 63.5 | D12: 79 | E12: 71.25 | G12: 60.5 | H12: 76 | I12: 68.25
A13: 19 | B13: 16 | C13: 73 | D13: 86 | E13: 79.5 | G13: 68 | H13: 82 | I13: 75
A14: 22.4 | B14: 19 | C14: 80.5 | D14: 91 | E14: 85.75 | G14: 74 | H14: 86 | I14: 80
A15: 31.5 | B15: 22.4 | C15: 89 | D15: 96 | E15: 92.5 | G15: 80 | H15: 90 | I15: 85
B16: 31.5 | C16: 100 | D16: 100 | E16: 100 | G16: 90 | H16: 97 | I16: 93.5

Sheet Siyah-Beyaz
B2: BETON REÇETE DİZAYN PROGRAMI | K2: Rapor No/Tarih | M2: =IF('Reçete Dizayn-renkli'!L1="","",'Reçete Dizayn-renkli'!L1) ->  | N2: ='Reçete Dizayn-renkli'!M1 -> 0
B4: Beton Sınıfı | C4: =IF('Reçete Dizayn-renkli'!B3="","",'Reçete Dizayn-renkli'!B3) -> C30/37 | D4: =IF(C4<Sheet4!I4,"DEĞİŞTİR","") ->  | E4: Çev. Etki Sınıfı | G4: =IF('Reçete Dizayn-renkli'!F3="","",'Reçete Dizayn-renkli'!F3) -> XC2 | H4: =IF(C4<Sheet4!I4,Sheet4!I9,"") ->  | K4: Klorür Sınıfı | M4: ='Reçete Dizayn-renkli'!L3 ->  | N4: ='Reçete Dizayn-renkli'!M3 -> 0
B5: Çimento Sınıfı | C5: =IF('Reçete Dizayn-renkli'!B4="","",'Reçete Dizayn-renkli'!B4) -> CEM I | E5: Min.Katkı k değeri | G5: =IF('Reçete Dizayn-renkli'!F4="","",'Reçete Dizayn-renkli'!F4) -> 0.4 | K5: Alkali Miktarı(kg/m3) | M5: ='Reçete Dizayn-renkli'!L4 ->  | N5: ='Reçete Dizayn-renkli'!M4 -> 0
B7: AGREGA GRADASYON HESAPLAMASI | K7: BİLEŞEN ÖZELLİKLERİ
B8: ELEK EBATI | C8: ELEKTEN GEÇEN MALZEME (%) | I8: KARIŞIM | K8: Bileşen | L8: Öz.Ağırlık | M8: Cl(%) | N8: Alkali(%)
B9: ( mm ) | C9: 1 NO | D9: 2 NO | E9: T.TOZU | F9: D.KUM | G9: K.KUM | H9: G.D.AGR. | K9: 1 NO | L9: =IF('Reçete Dizayn-renkli'!K8="","",'Reçete Dizayn-renkli'!K8) -> 2.7 | M9: =IF('Reçete Dizayn-renkli'!L8="","",'Reçete Dizayn-renkli'!L8) ->  | N9: =IF('Reçete Dizayn-renkli'!M8="","",'Reçete Dizayn-renkli'!M8) -> 
B10: 31.5 | C10: =IF('Reçete Dizayn-renkli'!B9="","",'Reçete Dizayn-renkli'!B9) -> 100 | D10: =IF('Reçete Dizayn-renkli'!C9="","",'Reçete Dizayn-renkli'!C9) -> 100 | E10: =IF('Reçete Dizayn-renkli'!D9="","",'Reçete Dizayn-renkli'!D9) -> 100 | F10: =IF('Reçete Dizayn-renkli'!E9="","",'Reçete Dizayn-renkli'!E9) -> 100 | G10: =IF('Reçete Dizayn-renkli'!F9="","",'Reçete Dizayn-renkli'!F9) ->  | H10: =IF('Reçete Dizayn-renkli'!G9="","",'Reçete Dizayn-renkli'!G9) ->  | I10: =IF('Reçete Dizayn-renkli'!H9="","",'Reçete Dizayn-renkli'!H9) -> 100 | K10: 2 NO | L10: =IF('Reçete Dizayn-renkli'!K9="","",'Reçete Dizayn-renkli'!K9) -> 2.7 | M10: =IF('Reçete Dizayn-renkli'!L9="","",'Reçete Dizayn-renkli'!L9) ->  | N10: =IF('Reçete Dizayn-renkli'!M9="","",'Reçete Dizayn-renkli'!M9) -> 
B11: 22.4 | C11: =IF('Reçete Dizayn-renkli'!B10="","",'Reçete Dizayn-renkli'!B10) -> 100 | D11: =IF('Reçete Dizayn-renkli'!C10="","",'Reçete Dizayn-renkli'!C10) -> 82.16666667 | E11: =IF('Reçete Dizayn-renkli'!D10="","",'Reçete Dizayn-renkli'!D10) -> 100 | F11: =IF('Reçete Dizayn-renkli'!E10="","",'Reçete Dizayn-renkli'!E10) -> 100 | G11: =IF('Reçete Dizayn-renkli'!F10="","",'Reçete Dizayn-renkli'!F10) ->  | H11: =IF('Reçete Dizayn-renkli'!G10="","",'Reçete Dizayn-renkli'!G10) ->  | I11: =IF('Reçete Dizayn-renkli'!H10="","",'Reçete Dizayn-renkli'!H10) -> 96.43333333 | K11: T.TOZU | L11: =IF('Reçete Dizayn-renkli'!K10="","",'Reçete Dizayn-renkli'!K10) -> 2.69 | M11: =IF('Reçete Dizayn-renkli'!L10="","",'Reçete Dizayn-renkli'!L10) ->  | N11: =IF('Reçete Dizayn-renkli'!M10="","",'Reçete Dizayn-renkli'!M10) -> 
B12: 19 | C12: =IF('Reçete Dizayn-renkli'!B11="","",'Reçete Dizayn-renkli'!B11) -> 100 | D12: =IF('Reçete Dizayn-renkli'!C11="","",'Reçete Dizayn-renkli'!C11) -> 48.96666667 | E12: =IF('Reçete Dizayn-renkli'!D11="","",'Reçete Dizayn-renkli'!D11) -> 100 | F12: =IF('Reçete Dizayn-renkli'!E11="","",'Reçete Dizayn-renkli'!E11) -> 100 | G12: =IF('Reçete Dizayn-renkli'!F11="","",'Reçete Dizayn-renkli'!F11) ->  | H12: =IF('Reçete Dizayn-renkli'!G11="","",'Reçete Dizayn-renkli'!G11) ->  | I12: =IF('Reçete Dizayn-renkli'!H11="","",'Reçete Dizayn-renkli'!H11) -> 89.79333333 | K12: D.KUM | L12: =IF('Reçete Dizayn-renkli'!K11="","",'Reçete Dizayn-renkli'!K11) -> 2.62 | M12: =IF('Reçete Dizayn-renkli'!L11="","",'Reçete Dizayn-renkli'!L11) ->  | N12: =IF('Reçete Dizayn-renkli'!M11="","",'Reçete Dizayn-renkli'!M11) -> 
B13: 16 | C13: =IF('Reçete Dizayn-renkli'!B12="","",'Reçete Dizayn-renkli'!B12) -> 98 | D13: =IF('Reçete Dizayn-renkli'!C12="","",'Reçete Dizayn-renkli'!C12) -> 21.66666667 | E13: =IF('Reçete Dizayn-renkli'!D12="","",'Reçete Dizayn-renkli'!D12) -> 100 | F13: =IF('Reçete Dizayn-renkli'!E12="","",'Reçete Dizayn-renkli'!E12) -> 100 | G13: =IF('Reçete Dizayn-renkli'!F12="","",'Reçete Dizayn-renkli'!F12) ->  | H13: =IF('Reçete Dizayn-renkli'!G12="","",'Reçete Dizayn-renkli'!G12) ->  | I13: =IF('Reçete Dizayn-renkli'!H12="","",'Reçete Dizayn-renkli'!H12) -> 83.83333333 | K13: K.KUM | L13: =IF('Reçete Dizayn-renkli'!K12="","",'Reçete Dizayn-renkli'!K12) -> 2.61 | M13: =IF('Reçete Dizayn-renkli'!L12="","",'Reçete Dizayn-renkli'!L12) ->  | N13: =IF('Reçete Dizayn-renkli'!M12="","",'Reçete Dizayn-renkli'!M12) -> 
B14: 11.2 | C14: =IF('Reçete Dizayn-renkli'!B13="","",'Reçete Dizayn-renkli'!B13) -> 54.63333333 | D14: =IF('Reçete Dizayn-renkli'!C13="","",'Reçete Dizayn-renkli'!C13) -> 0.9666666667 | E14: =IF('Reçete Dizayn-renkli'!D13="","",'Reçete Dizayn-renkli'!D13) -> 100 | F14: =IF('Reçete Dizayn-renkli'!E13="","",'Reçete Dizayn-renkli'!E13) -> 100 | G14: =IF('Reçete Dizayn-renkli'!F13="","",'Reçete Dizayn-renkli'!F13) ->  | H14: =IF('Reçete Dizayn-renkli'!G13="","",'Reçete Dizayn-renkli'!G13) ->  | I14: =IF('Reçete Dizayn-renkli'!H13="","",'Reçete Dizayn-renkli'!H13) -> 68.85166667 | K14: G.D.AGR. | L14: =IF('Reçete Dizayn-renkli'!K13="","",'Reçete Dizayn-renkli'!K13) ->  | M14: =IF('Reçete Dizayn-renkli'!L13="","",'Reçete Dizayn-renkli'!L13) ->  | N14: =IF('Reçete Dizayn-renkli'!M13="","",'Reçete Dizayn-renkli'!M13) -> 
B15: 8 | C15: =IF('Reçete Dizayn-renkli'!B14="","",'Reçete Dizayn-renkli'!B14) -> 11 | D15: =IF('Reçete Dizayn-renkli'!C14="","",'Reçete Dizayn-renkli'!C14) -> 0.3333333333 | E15: =IF('Reçete Dizayn-renkli'!D14="","",'Reçete Dizayn-renkli'!D14) -> 100 | F15: =IF('Reçete Dizayn-renkli'!E14="","",'Reçete Dizayn-renkli'!E14) -> 100 | G15: =IF('Reçete Dizayn-renkli'!F14="","",'Reçete Dizayn-renkli'!F14) ->  | H15: =IF('Reçete Dizayn-renkli'!G14="","",'Reçete Dizayn-renkli'!G14) ->  | I15: =IF('Reçete Dizayn-renkli'!H14="","",'Reçete Dizayn-renkli'!H14) -> 57.81666667 | K15: ÇİMENTO 1 | L15: =IF('Reçete Dizayn-renkli'!K14="","",'Reçete Dizayn-renkli'!K14) -> 3.1 | M15: =IF('Reçete Dizayn-renkli'!L14="","",'Reçete Dizayn-renkli'!L14) ->  | N15: =IF('Reçete Dizayn-renkli'!M14="","",'Reçete Dizayn-renkli'!M14) -> 
B16: 5.6 | C16: =IF('Reçete Dizayn-renkli'!B15="","",'Reçete Dizayn-renkli'!B15) -> 2.066666667 | D16: =IF('Reçete Dizayn-renkli'!C15="","",'Reçete Dizayn-renkli'!C15) -> 0.3333333333 | E16: =IF('Reçete Dizayn-renkli'!D15="","",'Reçete Dizayn-renkli'!D15) -> 95.6 | F16: =IF('Reçete Dizayn-renkli'!E15="","",'Reçete Dizayn-renkli'!E15) -> 100 | G16: =IF('Reçete Dizayn-renkli'!F15="","",'Reçete Dizayn-renkli'!F15) ->  | H16: =IF('Reçete Dizayn-renkli'!G15="","",'Reçete Dizayn-renkli'!G15) ->  | I16: =IF('Reçete Dizayn-renkli'!H15="","",'Reçete Dizayn-renkli'!H15) -> 54.48333333 | K16: ÇİMENTO 2 | L16: =IF('Reçete Dizayn-renkli'!K15="","",'Reçete Dizayn-renkli'!K15) -> 3.04 | M16: =IF('Reçete Dizayn-renkli'!L15="","",'Reçete Dizayn-renkli'!L15) ->  | N16: =IF('Reçete Dizayn-renkli'!M15="","",'Reçete Dizayn-renkli'!M15) -> 
B17: 4 | C17: =IF('Reçete Dizayn-renkli'!B16="","",'Reçete Dizayn-renkli'!B16) -> 0.3333333333 | D17: =IF('Reçete Dizayn-renkli'!C16="","",'Reçete Dizayn-renkli'!C16) -> 0.3333333333 | E17: =IF('Reçete Dizayn-renkli'!D16="","",'Reçete Dizayn-renkli'!D16) -> 77.7 | F17: =IF('Reçete Dizayn-renkli'!E16="","",'Reçete Dizayn-renkli'!E16) -> 90 | G17: =IF('Reçete Dizayn-renkli'!F16="","",'Reçete Dizayn-renkli'!F16) ->  | H17: =IF('Reçete Dizayn-renkli'!G16="","",'Reçete Dizayn-renkli'!G16) ->  | I17: =IF('Reçete Dizayn-renkli'!H16="","",'Reçete Dizayn-renkli'!H16) -> 46.575 | K17: SU | L17: =IF('Reçete Dizayn-renkli'!K16="","",'Reçete Dizayn-renkli'!K16) -> 1 | M17: =IF('Reçete Dizayn-renkli'!L16="","",'Reçete Dizayn-renkli'!L16) ->  | N17: =IF('Reçete Dizayn-renkli'!M16="","",'Reçete Dizayn-renkli'!M16) -> 
B18: 2 | C18: =IF('Reçete Dizayn-renkli'!B17="","",'Reçete Dizayn-renkli'!B17) -> 0.2666666667 | D18: =IF('Reçete Dizayn-renkli'!C17="","",'Reçete Dizayn-renkli'!C17) -> 0.2 | E18: =IF('Reçete Dizayn-renkli'!D17="","",'Reçete Dizayn-renkli'!D17) -> 55.9 | F18: =IF('Reçete Dizayn-renkli'!E17="","",'Reçete Dizayn-renkli'!E17) -> 51 | G18: =IF('Reçete Dizayn-renkli'!F17="","",'Reçete Dizayn-renkli'!F17) ->  | H18: =IF('Reçete Dizayn-renkli'!G17="","",'Reçete Dizayn-renkli'!G17) ->  | I18: =IF('Reçete Dizayn-renkli'!H17="","",'Reçete Dizayn-renkli'!H17) -> 29.38166667 | K18: G.D.SU | L18: =IF('Reçete Dizayn-renkli'!K17="","",'Reçete Dizayn-renkli'!K17) -> 1.03 | M18: =IF('Reçete Dizayn-renkli'!L17="","",'Reçete Dizayn-renkli'!L17) ->  | N18: =IF('Reçete Dizayn-renkli'!M17="","",'Reçete Dizayn-renkli'!M17) -> 
B19: 1 | C19: =IF('Reçete Dizayn-renkli'!B18="","",'Reçete Dizayn-renkli'!B18) -> 0.2666666667 | D19: =IF('Reçete Dizayn-renkli'!C18="","",'Reçete Dizayn-renkli'!C18) -> 0.2 | E19: =IF('Reçete Dizayn-renkli'!D18="","",'Reçete Dizayn-renkli'!D18) -> 39.2 | F19: =IF('Reçete Dizayn-renkli'!E18="","",'Reçete Dizayn-renkli'!E18) -> 35 | G19: =IF('Reçete Dizayn-renkli'!F18="","",'Reçete Dizayn-renkli'!F18) ->  | H19: =IF('Reçete Dizayn-renkli'!G18="","",'Reçete Dizayn-renkli'!G18) ->  | I19: =IF('Reçete Dizayn-renkli'!H18="","",'Reçete Dizayn-renkli'!H18) -> 20.40666667 | K19: UÇUCU KÜL | L19: =IF('Reçete Dizayn-renkli'!K18="","",'Reçete Dizayn-renkli'!K18) -> 2.5 | M19: =IF('Reçete Dizayn-renkli'!L18="","",'Reçete Dizayn-renkli'!L18) ->  | N19: =IF('Reçete Dizayn-renkli'!M18="","",'Reçete Dizayn-renkli'!M18) -> 
B20: 0.5 | C20: =IF('Reçete Dizayn-renkli'!B19="","",'Reçete Dizayn-renkli'!B19) -> 0.2666666667 | D20: =IF('Reçete Dizayn-renkli'!C19="","",'Reçete Dizayn-renkli'!C19) -> 0.2 | E20: =IF('Reçete Dizayn-renkli'!D19="","",'Reçete Dizayn-renkli'!D19) -> 23.8 | F20: =IF('Reçete Dizayn-renkli'!E19="","",'Reçete Dizayn-renkli'!E19) -> 26 | G20: =IF('Reçete Dizayn-renkli'!F19="","",'Reçete Dizayn-renkli'!F19) ->  | H20: =IF('Reçete Dizayn-renkli'!G19="","",'Reçete Dizayn-renkli'!G19) ->  | I20: =IF('Reçete Dizayn-renkli'!H19="","",'Reçete Dizayn-renkli'!H19) -> 13.85666667 | K20: S. DUMANI | L20: =IF('Reçete Dizayn-renkli'!K19="","",'Reçete Dizayn-renkli'!K19) ->  | M20: =IF('Reçete Dizayn-renkli'!L19="","",'Reçete Dizayn-renkli'!L19) ->  | N20: =IF('Reçete Dizayn-renkli'!M19="","",'Reçete Dizayn-renkli'!M19) -> 
B21: 0.25 | C21: =IF('Reçete Dizayn-renkli'!B20="","",'Reçete Dizayn-renkli'!B20) -> 0.2666666667 | D21: =IF('Reçete Dizayn-renkli'!C20="","",'Reçete Dizayn-renkli'!C20) -> 0.2 | E21: =IF('Reçete Dizayn-renkli'!D20="","",'Reçete Dizayn-renkli'!D20) -> 11.8 | F21: =IF('Reçete Dizayn-renkli'!E20="","",'Reçete Dizayn-renkli'!E20) -> 20 | G21: =IF('Reçete Dizayn-renkli'!F20="","",'Reçete Dizayn-renkli'!F20) ->  | H21: =IF('Reçete Dizayn-renkli'!G20="","",'Reçete Dizayn-renkli'!G20) ->  | I21: =IF('Reçete Dizayn-renkli'!H20="","",'Reçete Dizayn-renkli'!H20) -> 9.056666667 | K21: KİM. KATKI 1 | L21: =IF('Reçete Dizayn-renkli'!K20="","",'Reçete Dizayn-renkli'!K20) -> 1.1 | M21: =IF('Reçete Dizayn-renkli'!L20="","",'Reçete Dizayn-renkli'!L20) ->  | N21: =IF('Reçete Dizayn-renkli'!M20="","",'Reçete Dizayn-renkli'!M20) -> 
B22: 0.125 | C22: =IF('Reçete Dizayn-renkli'!B21="","",'Reçete Dizayn-renkli'!B21) -> 0.1 | D22: =IF('Reçete Dizayn-renkli'!C21="","",'Reçete Dizayn-renkli'!C21) -> 0.1 | E22: =IF('Reçete Dizayn-renkli'!D21="","",'Reçete Dizayn-renkli'!D21) -> 7 | F22: =IF('Reçete Dizayn-renkli'!E21="","",'Reçete Dizayn-renkli'!E21) -> 14 | G22: =IF('Reçete Dizayn-renkli'!F21="","",'Reçete Dizayn-renkli'!F21) ->  | H22: =IF('Reçete Dizayn-renkli'!G21="","",'Reçete Dizayn-renkli'!G21) ->  | I22: =IF('Reçete Dizayn-renkli'!H21="","",'Reçete Dizayn-renkli'!H21) -> 5.995 | J22: 1 | K22: KİM. KATKI 2 | L22: =IF('Reçete Dizayn-renkli'!K21="","",'Reçete Dizayn-renkli'!K21) ->  | M22: =IF('Reçete Dizayn-renkli'!L21="","",'Reçete Dizayn-renkli'!L21) ->  | N22: =IF('Reçete Dizayn-renkli'!M21="","",'Reçete Dizayn-renkli'!M21) -> 
B23: 0.063 | C23: =IF('Reçete Dizayn-renkli'!B22="","",'Reçete Dizayn-renkli'!B22) -> 0 | D23: =IF('Reçete Dizayn-renkli'!C22="","",'Reçete Dizayn-renkli'!C22) -> 0 | E23: =IF('Reçete Dizayn-renkli'!D22="","",'Reçete Dizayn-renkli'!D22) -> 2 | F23: =IF('Reçete Dizayn-renkli'!E22="","",'Reçete Dizayn-renkli'!E22) -> 3 | G23: =IF('Reçete Dizayn-renkli'!F22="","",'Reçete Dizayn-renkli'!F22) ->  | H23: =IF('Reçete Dizayn-renkli'!G22="","",'Reçete Dizayn-renkli'!G22) ->  | I23: =IF('Reçete Dizayn-renkli'!H22="","",'Reçete Dizayn-renkli'!H22) -> 1.4 | K23: =IF(L25>Sheet4!H4,"SU/ÇİMENTO DÜZELT","") ->  | N23: =IF(L25>Sheet4!H4,Sheet4!H9,"") -> 
B24: MİKTAR(%) | C24: =IF('Reçete Dizayn-renkli'!B23="","",'Reçete Dizayn-renkli'!B23) -> 25 | D24: =IF('Reçete Dizayn-renkli'!C23="","",'Reçete Dizayn-renkli'!C23) -> 20 | E24: =IF('Reçete Dizayn-renkli'!D23="","",'Reçete Dizayn-renkli'!D23) -> 25 | F24: =IF('Reçete Dizayn-renkli'!E23="","",'Reçete Dizayn-renkli'!E23) -> 30 | G24: =IF('Reçete Dizayn-renkli'!F23="","",'Reçete Dizayn-renkli'!F23) -> 0 | H24: =IF('Reçete Dizayn-renkli'!G23="","",'Reçete Dizayn-renkli'!G23) -> 0 | I24: =IF('Reçete Dizayn-renkli'!H23="","",'Reçete Dizayn-renkli'!H23) -> 100
C25: =IF('Reçete Dizayn-renkli'!B24="","",'Reçete Dizayn-renkli'!B24) ->  | D25: =IF('Reçete Dizayn-renkli'!C24="","",'Reçete Dizayn-renkli'!C24) ->  | E25: =IF('Reçete Dizayn-renkli'!D24="","",'Reçete Dizayn-renkli'!D24) ->  | F25: =IF('Reçete Dizayn-renkli'!E24="","",'Reçete Dizayn-renkli'!E24) ->  | G25: =IF('Reçete Dizayn-renkli'!F24="","",'Reçete Dizayn-renkli'!F24) ->  | H25: =IF('Reçete Dizayn-renkli'!G24="","",'Reçete Dizayn-renkli'!G24) ->  | I25: =IF('Reçete Dizayn-renkli'!H24="","",'Reçete Dizayn-renkli'!H24) ->  | K25: Su/Çimento | L25: ='Reçete Dizayn-renkli'!K24 -> 0.58 | M25: Su(kg) | N25: ='Reçete Dizayn-renkli'!M24 -> 176.32
B26: İncelik Modülü | C26: =IF('Reçete Dizayn-renkli'!B25="","",'Reçete Dizayn-renkli'!B25) -> 5.985 | D26: =IF('Reçete Dizayn-renkli'!C25="","",'Reçete Dizayn-renkli'!C25) -> 5.987666667 | E26: =IF('Reçete Dizayn-renkli'!D25="","",'Reçete Dizayn-renkli'!D25) -> 3.846 | F26: =IF('Reçete Dizayn-renkli'!E25="","",'Reçete Dizayn-renkli'!E25) -> 3.64 | G26: =IF('Reçete Dizayn-renkli'!F25="","",'Reçete Dizayn-renkli'!F25) ->  | H26: =IF('Reçete Dizayn-renkli'!G25="","",'Reçete Dizayn-renkli'!G25) ->  | I26: =IF('Reçete Dizayn-renkli'!H25="","",'Reçete Dizayn-renkli'!H25) -> 4.747283333
B27: 0.063
B28: 0.125 | C28: ='Reçete Dizayn-renkli'!B27 -> 2.5 | D28: =IF($J$22=1,Sheet8!D4,Sheet8!H4) -> 8.5 | E28: =IF($J$22=1,Sheet8!E4,Sheet8!I4) -> 5.5 | F28: =$I$22 -> 5.995
B29: 0.25 | D29: =IF($J$22=1,Sheet8!D5,Sheet8!H5) -> 15 | E29: =IF($J$22=1,Sheet8!E5,Sheet8!I5) -> 10.5 | F29: =$I$21 -> 9.056666667 | K29: Kompasite | M29: =IF('Reçete Dizayn-renkli'!L28="","",'Reçete Dizayn-renkli'!L28) -> 0.7895944789 | N29: =IF('Reçete Dizayn-renkli'!M28="","",'Reçete Dizayn-renkli'!M28) -> 
B30: 0.5 | D30: =IF($J$22=1,Sheet8!D6,Sheet8!H6) -> 22 | E30: =IF($J$22=1,Sheet8!E6,Sheet8!I6) -> 16 | F30: =$I$20 -> 13.85666667
B31: 1 | C31: =IF($J$22=1,Sheet8!C7,Sheet8!G7) -> 16 | D31: =IF($J$22=1,Sheet8!D7,Sheet8!H7) -> 32 | E31: =IF($J$22=1,Sheet8!E7,Sheet8!I7) -> 24 | F31: =$I$19 -> 20.40666667 | K31: DÜZELTİLMİŞ REÇETE (1 m3) | N31: =IF('Reçete Dizayn-renkli'!M30="","",'Reçete Dizayn-renkli'!M30) -> 7
B32: 2 | C32: =IF($J$22=1,Sheet8!C8,Sheet8!G8) -> 25 | D32: =IF($J$22=1,Sheet8!D8,Sheet8!H8) -> 43 | E32: =IF($J$22=1,Sheet8!E8,Sheet8!I8) -> 34 | F32: =$I$18 -> 29.38166667 | K32: Bileşen | L32: Ağırlık (kg) | M32: Hacim (dm3) | N32: Ağırlık (kg)
B33: 4 | C33: =IF($J$22=1,Sheet8!C9,Sheet8!G9) -> 37 | D33: =IF($J$22=1,Sheet8!D9,Sheet8!H9) -> 56 | E33: =IF($J$22=1,Sheet8!E9,Sheet8!I9) -> 46.5 | F33: =$I$17 -> 46.575
B34: 5.6 | C34: =IF($J$22=1,Sheet8!C10,Sheet8!G10) -> 46 | D34: =IF($J$22=1,Sheet8!D10,Sheet8!H10) -> 64 | E34: =IF($J$22=1,Sheet8!E10,Sheet8!I10) -> 55 | F34: =$I$16 -> 54.48333333 | K34: =$K$9 -> 1 NO | L34: =IF('Reçete Dizayn-renkli'!K33="","",'Reçete Dizayn-renkli'!K33) -> 462.5548944 | M34: =IF('Reçete Dizayn-renkli'!L33="","",'Reçete Dizayn-renkli'!L33) -> 171.3166276 | N34: =IF('Reçete Dizayn-renkli'!M33="","",'Reçete Dizayn-renkli'!M33) -> 3237.884261
B35: 8 | C35: =IF($J$22=1,Sheet8!C11,Sheet8!G11) -> 54 | D35: =IF($J$22=1,Sheet8!D11,Sheet8!H11) -> 71 | E35: =IF($J$22=1,Sheet8!E11,Sheet8!I11) -> 62.5 | F35: =$I$15 -> 57.81666667 | K35: =$K$10 -> 2 NO | L35: =IF('Reçete Dizayn-renkli'!K34="","",'Reçete Dizayn-renkli'!K34) -> 370.0439155 | M35: =IF('Reçete Dizayn-renkli'!L34="","",'Reçete Dizayn-renkli'!L34) -> 137.0533021 | N35: =IF('Reçete Dizayn-renkli'!M34="","",'Reçete Dizayn-renkli'!M34) -> 2590.307409
B36: 11.2 | C36: =IF($J$22=1,Sheet8!C12,Sheet8!G12) -> 63.5 | D36: =IF($J$22=1,Sheet8!D12,Sheet8!H12) -> 79 | E36: =IF($J$22=1,Sheet8!E12,Sheet8!I12) -> 71.25 | F36: =$I$14 -> 68.85166667 | K36: =$K$11 -> T.TOZU | L36: =IF('Reçete Dizayn-renkli'!K35="","",'Reçete Dizayn-renkli'!K35) -> 456.2333109 | M36: =IF('Reçete Dizayn-renkli'!L35="","",'Reçete Dizayn-renkli'!L35) -> 166.7082103 | N36: =IF('Reçete Dizayn-renkli'!M35="","",'Reçete Dizayn-renkli'!M35) -> 3193.633176
B37: 16 | C37: =IF($J$22=1,Sheet8!C13,Sheet8!G13) -> 73 | D37: =IF($J$22=1,Sheet8!D13,Sheet8!H13) -> 86 | E37: =IF($J$22=1,Sheet8!E13,Sheet8!I13) -> 79.5 | F37: =$I$13 -> 83.83333333 | K37: =$K$12 -> D.KUM | L37: =IF('Reçete Dizayn-renkli'!K36="","",'Reçete Dizayn-renkli'!K36) -> 533.2332823 | M37: =IF('Reçete Dizayn-renkli'!L36="","",'Reçete Dizayn-renkli'!L36) -> 200.1937583 | N37: =IF('Reçete Dizayn-renkli'!M36="","",'Reçete Dizayn-renkli'!M36) -> 3732.632976
B38: 19 | C38: =IF($J$22=1,Sheet8!C14,Sheet8!G14) -> 80.5 | D38: =IF($J$22=1,Sheet8!D14,Sheet8!H14) -> 91 | E38: =IF($J$22=1,Sheet8!E14,Sheet8!I14) -> 85.75 | F38: =$I$12 -> 89.79333333 | K38: =$K$13 -> K.KUM | L38: =IF('Reçete Dizayn-renkli'!K37="","",'Reçete Dizayn-renkli'!K37) -> 0 | M38: =IF('Reçete Dizayn-renkli'!L37="","",'Reçete Dizayn-renkli'!L37) ->  | N38: =IF('Reçete Dizayn-renkli'!M37="","",'Reçete Dizayn-renkli'!M37) -> 0
B39: 22.4 | C39: =IF($J$22=1,Sheet8!C15,Sheet8!G15) -> 89 | D39: =IF($J$22=1,Sheet8!D15,Sheet8!H15) -> 96 | E39: =IF($J$22=1,Sheet8!E15,Sheet8!I15) -> 92.5 | F39: =$I$11 -> 96.43333333 | K39: =$K$14 -> G.D.AGR. | L39: =IF('Reçete Dizayn-renkli'!K38="","",'Reçete Dizayn-renkli'!K38) -> 0 | M39: =IF('Reçete Dizayn-renkli'!L38="","",'Reçete Dizayn-renkli'!L38) ->  | N39: =IF('Reçete Dizayn-renkli'!M38="","",'Reçete Dizayn-renkli'!M38) -> 0
B40: 31.5 | C40: =IF($J$22=1,Sheet8!C16,Sheet8!G16) -> 100 | D40: =IF($J$22=1,Sheet8!D16,Sheet8!H16) -> 100 | E40: =IF($J$22=1,Sheet8!E16,Sheet8!I16) -> 100 | F40: =$I$10 -> 100 | K40: =$K$15 -> ÇİMENTO 1 | L40: =IF('Reçete Dizayn-renkli'!K39="","",'Reçete Dizayn-renkli'!K39) -> 280 | M40: =IF('Reçete Dizayn-renkli'!L39="","",'Reçete Dizayn-renkli'!L39) -> 90.32258065 | N40: =IF('Reçete Dizayn-renkli'!M39="","",'Reçete Dizayn-renkli'!M39) -> 1960
B41: Dmaks | K41: =$K$16 -> ÇİMENTO 2 | L41: =IF('Reçete Dizayn-renkli'!K40="","",'Reçete Dizayn-renkli'!K40) -> 0 | M41: =IF('Reçete Dizayn-renkli'!L40="","",'Reçete Dizayn-renkli'!L40) -> 0 | N41: =IF('Reçete Dizayn-renkli'!M40="","",'Reçete Dizayn-renkli'!M40) -> 0
B42: BİLEŞEN MİKTARLARI | K42: =$K$17 -> SU | L42: =IF('Reçete Dizayn-renkli'!K41="","",'Reçete Dizayn-renkli'!K41) -> 186.3146121 | M42: =IF('Reçete Dizayn-renkli'!L41="","",'Reçete Dizayn-renkli'!L41) -> 186.3146121 | N42: =IF('Reçete Dizayn-renkli'!M41="","",'Reçete Dizayn-renkli'!M41) -> 1304.202284
B43: Bileşen | C43: Ağırlık | D43: Hacim | F43: Bileşen | G43: Ağırlık | H43: Hacim | K43: =$K$19 -> UÇUCU KÜL | L43: =IF('Reçete Dizayn-renkli'!K42="","",'Reçete Dizayn-renkli'!K42) -> 60 | M43: =IF('Reçete Dizayn-renkli'!L42="","",'Reçete Dizayn-renkli'!L42) -> 24 | N43: =IF('Reçete Dizayn-renkli'!M42="","",'Reçete Dizayn-renkli'!M42) -> 420
B44: =$K$15 -> ÇİMENTO 1 | C44: =IF('Reçete Dizayn-renkli'!B43="","",'Reçete Dizayn-renkli'!B43) -> 280 | D44: =IF('Reçete Dizayn-renkli'!C43="","",'Reçete Dizayn-renkli'!C43) -> 90.32258065 | F44: =$K$9 -> 1 NO | G44: =IF('Reçete Dizayn-renkli'!F43="","",'Reçete Dizayn-renkli'!F43) -> 462.5548944 | H44: =IF('Reçete Dizayn-renkli'!G43="","",'Reçete Dizayn-renkli'!G43) -> 171.3166276 | K44: =$K$20 -> S. DUMANI | L44: =IF('Reçete Dizayn-renkli'!K43="","",'Reçete Dizayn-renkli'!K43) -> 0 | M44: =IF('Reçete Dizayn-renkli'!L43="","",'Reçete Dizayn-renkli'!L43) ->  | N44: =IF('Reçete Dizayn-renkli'!M43="","",'Reçete Dizayn-renkli'!M43) -> 0
B45: =$K$16 -> ÇİMENTO 2 | C45: =IF('Reçete Dizayn-renkli'!B44="","",'Reçete Dizayn-renkli'!B44) -> 0 | D45: =IF('Reçete Dizayn-renkli'!C44="","",'Reçete Dizayn-renkli'!C44) -> 0 | F45: =$K$10 -> 2 NO | G45: =IF('Reçete Dizayn-renkli'!F44="","",'Reçete Dizayn-renkli'!F44) -> 370.0439155 | H45: =IF('Reçete Dizayn-renkli'!G44="","",'Reçete Dizayn-renkli'!G44) -> 137.0533021 | K45: =$K$21 -> KİM. KATKI 1 | L45: =IF('Reçete Dizayn-renkli'!K44="","",'Reçete Dizayn-renkli'!K44) -> 4.5 | M45: =IF('Reçete Dizayn-renkli'!L44="","",'Reçete Dizayn-renkli'!L44) -> 4.090909091 | N45: =IF('Reçete Dizayn-renkli'!M44="","",'Reçete Dizayn-renkli'!M44) -> 31.5
B46: =$K$19 -> UÇUCU KÜL | C46: =IF('Reçete Dizayn-renkli'!B45="","",'Reçete Dizayn-renkli'!B45) -> 60 | D46: =IF('Reçete Dizayn-renkli'!C45="","",'Reçete Dizayn-renkli'!C45) -> 24 | F46: =$K$11 -> T.TOZU | G46: =IF('Reçete Dizayn-renkli'!F45="","",'Reçete Dizayn-renkli'!F45) -> 460.8417282 | H46: =IF('Reçete Dizayn-renkli'!G45="","",'Reçete Dizayn-renkli'!G45) -> 171.3166276 | K46: =$K$22 -> KİM. KATKI 2 | L46: =IF('Reçete Dizayn-renkli'!K45="","",'Reçete Dizayn-renkli'!K45) -> 0 | M46: =IF('Reçete Dizayn-renkli'!L45="","",'Reçete Dizayn-renkli'!L45) ->  | N46: =IF('Reçete Dizayn-renkli'!M45="","",'Reçete Dizayn-renkli'!M45) -> 0
B47: =$K$20 -> S. DUMANI | C47: =IF('Reçete Dizayn-renkli'!B46="","",'Reçete Dizayn-renkli'!B46) -> 0 | D47: =IF('Reçete Dizayn-renkli'!C46="","",'Reçete Dizayn-renkli'!C46) ->  | F47: =$K$12 -> D.KUM | G47: =IF('Reçete Dizayn-renkli'!F46="","",'Reçete Dizayn-renkli'!F46) -> 538.6194771 | H47: =IF('Reçete Dizayn-renkli'!G46="","",'Reçete Dizayn-renkli'!G46) -> 205.5799531 | K47: TOPLAM | L47: =IF('Reçete Dizayn-renkli'!K46="","",'Reçete Dizayn-renkli'!K46) -> 2352.880015 | M47: =IF('Reçete Dizayn-renkli'!L46="","",'Reçete Dizayn-renkli'!L46) -> 1000 | N47: =IF('Reçete Dizayn-renkli'!M46="","",'Reçete Dizayn-renkli'!M46) -> 16470.16011
B48: =$K$21 -> KİM. KATKI 1 | C48: =IF('Reçete Dizayn-renkli'!B47="","",'Reçete Dizayn-renkli'!B47) -> 4.5 | D48: =IF('Reçete Dizayn-renkli'!C47="","",'Reçete Dizayn-renkli'!C47) -> 4.090909091 | F48: =$K$13 -> K.KUM | G48: =IF('Reçete Dizayn-renkli'!F47="","",'Reçete Dizayn-renkli'!F47) -> 0 | H48: =IF('Reçete Dizayn-renkli'!G47="","",'Reçete Dizayn-renkli'!G47) -> 0
B49: =$K$22 -> KİM. KATKI 2 | C49: =IF('Reçete Dizayn-renkli'!B48="","",'Reçete Dizayn-renkli'!B48) -> 0 | D49: =IF('Reçete Dizayn-renkli'!C48="","",'Reçete Dizayn-renkli'!C48) ->  | F49: =$K$14 -> G.D.AGR. | G49: =IF('Reçete Dizayn-renkli'!F48="","",'Reçete Dizayn-renkli'!F48) -> 0 | H49: =IF('Reçete Dizayn-renkli'!G48="","",'Reçete Dizayn-renkli'!G48) -> 0 | K49: Birim Ağırlık (kg/m3) | L49: =SUM(L34:L46) -> 2352.880015 | M49: Hacim (dm3) | N49: =SUM(M34:M46)+D50 -> 1000
B50: HAVA | C50: =IF('Reçete Dizayn-renkli'!B49="","",'Reçete Dizayn-renkli'!B49) -> 0 | D50: =IF('Reçete Dizayn-renkli'!C49="","",'Reçete Dizayn-renkli'!C49) -> 20 | F50: =$K$17 -> SU | G50: =IF('Reçete Dizayn-renkli'!F49="","",'Reçete Dizayn-renkli'!F49) -> 176.32 | H50: =IF('Reçete Dizayn-renkli'!G49="","",'Reçete Dizayn-renkli'!G49) -> 176.32
K51: Ölçülen Birim Ağırlık | M51: =IF('Reçete Dizayn-renkli'!L50="","",'Reçete Dizayn-renkli'!L50) ->  | N51: =IF('Reçete Dizayn-renkli'!M50="","",'Reçete Dizayn-renkli'!M50) -> 
B52: Birim Ağırlık (kg/m3) | D52: =IF('Reçete Dizayn-renkli'!C51="","",'Reçete Dizayn-renkli'!C51) -> 2352.880015 | F52: Hacim (dm3) | H52: =IF('Reçete Dizayn-renkli'!G51="","",'Reçete Dizayn-renkli'!G51) -> 1000 | K52: Basınç Dayanımı(MPa) | M52: Sıcaklık (oC)
B53: NEM DÜZELTME | I53: ='Reçete Dizayn-renkli'!H52:H53 -> 0 | K53: 3 GÜN | L53: =IF('Reçete Dizayn-renkli'!K52="","",'Reçete Dizayn-renkli'!K52) ->  | M53: Ortam | N53: =IF('Reçete Dizayn-renkli'!M52="","",'Reçete Dizayn-renkli'!M52) -> 
C54: 1 NO | D54: 2 NO | E54: T.TOZU | F54: D.KUM | G54: K.KUM | H54: G.D.AGR. | K54: 7 GÜN | L54: =IF('Reçete Dizayn-renkli'!K53="","",'Reçete Dizayn-renkli'!K53) ->  | N54: =IF('Reçete Dizayn-renkli'!M53="","",'Reçete Dizayn-renkli'!M53) -> 
B55: Nem (%) | C55: =IF('Reçete Dizayn-renkli'!B54="","",'Reçete Dizayn-renkli'!B54) -> 1 | D55: =IF('Reçete Dizayn-renkli'!C54="","",'Reçete Dizayn-renkli'!C54) -> 1 | E55: =IF('Reçete Dizayn-renkli'!D54="","",'Reçete Dizayn-renkli'!D54) -> 2 | F55: =IF('Reçete Dizayn-renkli'!E54="","",'Reçete Dizayn-renkli'!E54) -> 2 | G55: =IF('Reçete Dizayn-renkli'!F54="","",'Reçete Dizayn-renkli'!F54) ->  | H55: =IF('Reçete Dizayn-renkli'!G54="","",'Reçete Dizayn-renkli'!G54) ->  | I55: =IF('Reçete Dizayn-renkli'!H54="","",'Reçete Dizayn-renkli'!H54) -> 9.994612052 | K55: 28 GÜN | L55: =IF('Reçete Dizayn-renkli'!K54="","",'Reçete Dizayn-renkli'!K54) ->  | M55: Beton | N55: =IF('Reçete Dizayn-renkli'!M54="","",'Reçete Dizayn-renkli'!M54) -> 
B56: Su emme (%) | C56: =IF('Reçete Dizayn-renkli'!B55="","",'Reçete Dizayn-renkli'!B55) -> 1 | D56: =IF('Reçete Dizayn-renkli'!C55="","",'Reçete Dizayn-renkli'!C55) -> 1 | E56: =IF('Reçete Dizayn-renkli'!D55="","",'Reçete Dizayn-renkli'!D55) -> 3 | F56: =IF('Reçete Dizayn-renkli'!E55="","",'Reçete Dizayn-renkli'!E55) -> 3 | G56: =IF('Reçete Dizayn-renkli'!F55="","",'Reçete Dizayn-renkli'!F55) ->  | H56: =IF('Reçete Dizayn-renkli'!G55="","",'Reçete Dizayn-renkli'!G55) ->  | I56: =IF('Reçete Dizayn-renkli'!H55="","",'Reçete Dizayn-renkli'!H55) ->  | K56: Slump(cm) | L56: =IF('Reçete Dizayn-renkli'!K55="","",'Reçete Dizayn-renkli'!K55) ->  | N56: =IF('Reçete Dizayn-renkli'!M55="","",'Reçete Dizayn-renkli'!M55) -> 

Sheet Diğer
H2: ÇOK İNCE MALZEME MUHTEVASI (TS 13515) (<0,125mm) (kg) | J2: ='Reçete Dizayn-renkli'!V25 -> ÇOK İNCE MALZEME MUHTEVASI (EN 12620) ( <0,063mm)
J4: Tip | K4: Değer(%) | L4: Sınıf
J5: İnce Agrega | K5: ='Reçete Dizayn-renkli'!W28 -> 2.545454545 | L5: ='Reçete Dizayn-renkli'!X28 -> f3 | M5: ='Reçete Dizayn-renkli'!Y28 -> 0
H6: ='Reçete Dizayn-renkli'!T29 -> 449.2328209 | K6: ='Reçete Dizayn-renkli'!W29 -> 0 | L6: ='Reçete Dizayn-renkli'!X29 -> 0 | M6: ='Reçete Dizayn-renkli'!Y29 -> 0
J7: İri Agrega | K7: ='Reçete Dizayn-renkli'!W30 -> 0 | L7: ='Reçete Dizayn-renkli'!X30 -> f3 | M7: ='Reçete Dizayn-renkli'!Y30 -> 0
K8: ='Reçete Dizayn-renkli'!W31 -> 0 | L8: ='Reçete Dizayn-renkli'!X31 -> 0 | M8: ='Reçete Dizayn-renkli'!Y31 -> 0
J10: Elek Arası Kalan (%)
B11: Pompa ile iletilen betonda kullanılacak ince agrega için tane dağılım eğrileri | J11: ='Reçete Dizayn-renkli'!V34 -> 31,5-22,4 | K11: ='Reçete Dizayn-renkli'!W34 -> 0 | L11: ='Reçete Dizayn-renkli'!X34 -> 3.566666667 | M11: ='Reçete Dizayn-renkli'!Y34 -> 0
C12: 0.063 | D12: 0 | E12: 3 | F12: =AVERAGE(D12:E12) -> 1.5 | G12: =($E$23*#REF!+$F$23*#REF!+$G$23*#REF!)/($E$23+$F$23+$G$23) ->  | J12: ='Reçete Dizayn-renkli'!V35 -> 22,4-19 | K12: ='Reçete Dizayn-renkli'!W35 -> 0 | L12: ='Reçete Dizayn-renkli'!X35 -> 6.64 | M12: ='Reçete Dizayn-renkli'!Y35 -> 0
C13: 0.125 | D13: 2.5 | E13: 9 | F13: =AVERAGE(D13:E13) -> 5.75 | G13: =($E$23*#REF!+$F$23*#REF!+$G$23*#REF!)/($E$23+$F$23+$G$23) ->  | J13: ='Reçete Dizayn-renkli'!V36 -> 19-16 | K13: ='Reçete Dizayn-renkli'!W36 -> 0 | L13: ='Reçete Dizayn-renkli'!X36 -> 5.96 | M13: ='Reçete Dizayn-renkli'!Y36 -> 0
C14: 0.25 | D14: 8 | E14: 25 | F14: 16.5 | G14: =($E$23*#REF!+$F$23*#REF!+$G$23*#REF!)/($E$23+$F$23+$G$23) ->  | J14: ='Reçete Dizayn-renkli'!V37 -> 16-11,2 | K14: ='Reçete Dizayn-renkli'!W37 -> 0 | L14: ='Reçete Dizayn-renkli'!X37 -> 14.98166667 | M14: ='Reçete Dizayn-renkli'!Y37 -> 0
C15: 0.5 | D15: 20 | E15: 50 | F15: 35 | G15: =($E$23*#REF!+$F$23*#REF!+$G$23*#REF!)/($E$23+$F$23+$G$23) ->  | J15: ='Reçete Dizayn-renkli'!V38 -> 11,2-8 | K15: ='Reçete Dizayn-renkli'!W38 -> 0 | L15: ='Reçete Dizayn-renkli'!X38 -> 11.035 | M15: ='Reçete Dizayn-renkli'!Y38 -> 0
C16: 1 | D16: 44 | E16: 74 | F16: 59 | G16: =($E$23*#REF!+$F$23*#REF!+$G$23*#REF!)/($E$23+$F$23+$G$23) ->  | J16: ='Reçete Dizayn-renkli'!V39 -> 8-5,6 | K16: ='Reçete Dizayn-renkli'!W39 -> 0 | L16: ='Reçete Dizayn-renkli'!X39 -> 3.333333333 | M16: ='Reçete Dizayn-renkli'!Y39 -> 0
C17: 2 | D17: 69 | E17: 90 | F17: 79.5 | G17: =($E$23*#REF!+$F$23*#REF!+$G$23*#REF!)/($E$23+$F$23+$G$23) ->  | J17: ='Reçete Dizayn-renkli'!V40 -> 5,6-4 | K17: ='Reçete Dizayn-renkli'!W40 -> 0 | L17: ='Reçete Dizayn-renkli'!X40 -> 7.908333333 | M17: ='Reçete Dizayn-renkli'!Y40 -> 0
C18: 4 | D18: 85 | E18: 98 | F18: 91.5 | G18: =($E$23*#REF!+$F$23*#REF!+$G$23*#REF!)/($E$23+$F$23+$G$23) ->  | J18: ='Reçete Dizayn-renkli'!V41 -> 4-2 | K18: ='Reçete Dizayn-renkli'!W41 -> 0 | L18: ='Reçete Dizayn-renkli'!X41 -> 17.19333333 | M18: ='Reçete Dizayn-renkli'!Y41 -> 0
C19: 5.6 | D19: 95 | E19: 100 | F19: 97.5 | G19: =($E$23*#REF!+$F$23*#REF!+$G$23*#REF!)/($E$23+$F$23+$G$23) ->  | J19: ='Reçete Dizayn-renkli'!V42 -> 2-1 | K19: ='Reçete Dizayn-renkli'!W42 -> 0 | L19: ='Reçete Dizayn-renkli'!X42 -> 8.975 | M19: ='Reçete Dizayn-renkli'!Y42 -> 0
C20: 8 | D20: 100 | E20: 100 | F20: 100 | G20: =($E$23*#REF!+$F$23*#REF!+$G$23*#REF!)/($E$23+$F$23+$G$23) ->  | J20: ='Reçete Dizayn-renkli'!V43 -> 1-0,5 | K20: ='Reçete Dizayn-renkli'!W43 -> 0 | L20: ='Reçete Dizayn-renkli'!X43 -> 6.55 | M20: ='Reçete Dizayn-renkli'!Y43 -> 0
J21: ='Reçete Dizayn-renkli'!V44 -> 0,5-0,25 | K21: ='Reçete Dizayn-renkli'!W44 -> 0 | L21: ='Reçete Dizayn-renkli'!X44 -> 4.8 | M21: ='Reçete Dizayn-renkli'!Y44 -> 0
J22: ='Reçete Dizayn-renkli'!V45 -> 0,25-0,125 | K22: ='Reçete Dizayn-renkli'!W45 -> 0 | L22: ='Reçete Dizayn-renkli'!X45 -> 3.061666667 | M22: ='Reçete Dizayn-renkli'!Y45 -> 0
J23: ='Reçete Dizayn-renkli'!V46 -> 0,125-0,063 | K23: ='Reçete Dizayn-renkli'!W46 -> 0 | L23: ='Reçete Dizayn-renkli'!X46 -> 4.595 | M23: ='Reçete Dizayn-renkli'!Y46 -> 0
J24: ='Reçete Dizayn-renkli'!V47 -> <0,063 | K24: ='Reçete Dizayn-renkli'!W47 -> 0 | L24: ='Reçete Dizayn-renkli'!X47 -> 1.4 | M24: ='Reçete Dizayn-renkli'!Y47 -> 0
B25: MALİYET HESABI
B26: Bileşen | C26: Fiyat | D26: Bileşen | E26: Fiyat | F26: Bileşen | G26: Fiyat
L27: Toplam | M27: =SUM(M28:M32) -> 
B28: ='Reçete Dizayn-renkli'!N51 -> ÇİMENTO 1 | C28: ='Reçete Dizayn-renkli'!O51 -> 0 | D28: ='Reçete Dizayn-renkli'!P51 -> 1 NO | E28: ='Reçete Dizayn-renkli'!Q51 -> 0 | F28: ='Reçete Dizayn-renkli'!R51 -> KİM. KATKI 1 | G28: ='Reçete Dizayn-renkli'!S51 -> 0 | J28: Çimento | K28: =(C28*#REF!+#REF!*C29)/1000 ->  | L28: =J32 -> Su | M28: =K32 -> 
B29: ='Reçete Dizayn-renkli'!N52 -> ÇİMENTO 2 | C29: ='Reçete Dizayn-renkli'!O52 -> 0 | D29: ='Reçete Dizayn-renkli'!P52 -> 2 NO | E29: ='Reçete Dizayn-renkli'!Q52 -> 0 | F29: ='Reçete Dizayn-renkli'!R52 -> KİM. KATKI 2 | G29: ='Reçete Dizayn-renkli'!S52 -> 0 | J29: Mineral Katkı | K29: =(#REF!*C30+#REF!*C31)/1000 ->  | L29: =J30 -> Kimyasal Katkı | M29: =K30 -> 
B30: ='Reçete Dizayn-renkli'!N53 -> UÇUCU KÜL | C30: ='Reçete Dizayn-renkli'!O53 -> 0 | D30: ='Reçete Dizayn-renkli'!P53 -> T.TOZU | E30: ='Reçete Dizayn-renkli'!Q53 -> 0 | F30: ='Reçete Dizayn-renkli'!R53 -> G.D.AGR. | G30: ='Reçete Dizayn-renkli'!S53 -> 0 | J30: Kimyasal Katkı | K30: =(#REF!*G28+#REF!*G29)/1000 ->  | L30: =J29 -> Mineral Katkı | M30: =K29 -> 
B31: ='Reçete Dizayn-renkli'!N54 -> S. DUMANI | C31: ='Reçete Dizayn-renkli'!O54 -> 0 | D31: ='Reçete Dizayn-renkli'!P54 -> D.KUM | E31: ='Reçete Dizayn-renkli'!Q54 -> 0 | F31: ='Reçete Dizayn-renkli'!R54 -> TOPLAM (TL) | G31: ='Reçete Dizayn-renkli'!S54 ->  | J31: Agrega | K31: =(E28*#REF!+#REF!*E29+E30*#REF!+#REF!*E31+E32*#REF!)/1000 ->  | L31: =J28 -> Çimento | M31: =K28 -> 
B32: ='Reçete Dizayn-renkli'!N55 -> SU | C32: ='Reçete Dizayn-renkli'!O55 -> 0 | D32: ='Reçete Dizayn-renkli'!P55 -> K.KUM | E32: ='Reçete Dizayn-renkli'!Q55 -> 0 | F32: ='Reçete Dizayn-renkli'!R55 -> 0 | G32: ='Reçete Dizayn-renkli'!S55 -> 0 | J32: Su | K32: =C32*#REF!/1000 ->  | L32: =J31 -> Agrega | M32: =K31 -> 

Sheet Otomatik Gradasyon
N5: 0.063 | O5: 1 | P5: 5 | Q5: 3 | R5: =H22 -> 1.4 | S5: ='Reçete Dizayn-renkli'!H22 -> 1.4
N6: 0.125 | O6: 2.5 | P6: 8.5 | Q6: 5.5 | R6: =H21 -> 5.995 | S6: ='Reçete Dizayn-renkli'!H21 -> 5.995
A7: ELEKTEN GEÇEN MALZEME (%) | J7: KISITLAMALAR | N7: 0.25 | O7: 6 | P7: 15 | Q7: 10.5 | R7: =H20 -> 9.056666667 | S7: ='Reçete Dizayn-renkli'!H20 -> 9.056666667
A8: ELEK | B8: ='Reçete Dizayn-renkli'!B8 -> 1 NO | C8: ='Reçete Dizayn-renkli'!C8 -> 2 NO | D8: ='Reçete Dizayn-renkli'!D8 -> T.TOZU | E8: ='Reçete Dizayn-renkli'!E8 -> D.KUM | F8: ='Reçete Dizayn-renkli'!F8 -> K.KUM | G8: ='Reçete Dizayn-renkli'!G8 -> G.D.AGR. | H8: ='Reçete Dizayn-renkli'!H7 -> KARIŞIM | K8: En az(%) | L8: En çok(%) | N8: 0.5 | O8: 10 | P8: 22 | Q8: 16 | R8: =H19 -> 13.85666667 | S8: ='Reçete Dizayn-renkli'!H19 -> 13.85666667
A9: ='Reçete Dizayn-renkli'!A9 -> 31.5 | B9: ='Reçete Dizayn-renkli'!B9 -> 100 | C9: ='Reçete Dizayn-renkli'!C9 -> 100 | D9: ='Reçete Dizayn-renkli'!D9 -> 100 | E9: ='Reçete Dizayn-renkli'!E9 -> 100 | F9: ='Reçete Dizayn-renkli'!F9 -> 0 | G9: ='Reçete Dizayn-renkli'!G9 -> 0 | H9: =($B$23*B9+$C$23*C9+$D$23*D9+$E$23*E9+$F$23*F9+$G$23*G9)/100 -> 100 | J9: =B8 -> 1 NO | K9: 15 | L9: 25 | N9: 1 | O9: 16 | P9: 32 | Q9: 24 | R9: =H18 -> 20.40666667 | S9: ='Reçete Dizayn-renkli'!H18 -> 20.40666667
A10: ='Reçete Dizayn-renkli'!A10 -> 22.4 | B10: ='Reçete Dizayn-renkli'!B10 -> 100 | C10: ='Reçete Dizayn-renkli'!C10 -> 82.16666667 | D10: ='Reçete Dizayn-renkli'!D10 -> 100 | E10: ='Reçete Dizayn-renkli'!E10 -> 100 | F10: ='Reçete Dizayn-renkli'!F10 -> 0 | G10: ='Reçete Dizayn-renkli'!G10 -> 0 | H10: =($B$23*B10+$C$23*C10+$D$23*D10+$E$23*E10+$F$23*F10+$G$23*G10)/100 -> 96.43333333 | J10: =C8 -> 2 NO | K10: 35 | L10: 45 | N10: 2 | O10: 25 | P10: 43 | Q10: 34 | R10: =H17 -> 29.38166667 | S10: ='Reçete Dizayn-renkli'!H17 -> 29.38166667
A11: ='Reçete Dizayn-renkli'!A11 -> 19 | B11: ='Reçete Dizayn-renkli'!B11 -> 100 | C11: ='Reçete Dizayn-renkli'!C11 -> 48.96666667 | D11: ='Reçete Dizayn-renkli'!D11 -> 100 | E11: ='Reçete Dizayn-renkli'!E11 -> 100 | F11: ='Reçete Dizayn-renkli'!F11 -> 0 | G11: ='Reçete Dizayn-renkli'!G11 -> 0 | H11: =($B$23*B11+$C$23*C11+$D$23*D11+$E$23*E11+$F$23*F11+$G$23*G11)/100 -> 89.79333333 | J11: =D8 -> T.TOZU | K11: 35 | L11: 45 | N11: 4 | O11: 37 | P11: 56 | Q11: 46.5 | R11: =H16 -> 46.575 | S11: ='Reçete Dizayn-renkli'!H16 -> 46.575
A12: ='Reçete Dizayn-renkli'!A12 -> 16 | B12: ='Reçete Dizayn-renkli'!B12 -> 98 | C12: ='Reçete Dizayn-renkli'!C12 -> 21.66666667 | D12: ='Reçete Dizayn-renkli'!D12 -> 100 | E12: ='Reçete Dizayn-renkli'!E12 -> 100 | F12: ='Reçete Dizayn-renkli'!F12 -> 0 | G12: ='Reçete Dizayn-renkli'!G12 -> 0 | H12: 83.83333333 | J12: =E8 -> D.KUM | K12: 15 | L12: 25 | N12: 5.6 | O12: 46 | P12: 64 | Q12: 55 | R12: =H15 -> 54.48333333 | S12: ='Reçete Dizayn-renkli'!H15 -> 54.48333333
A13: ='Reçete Dizayn-renkli'!A13 -> 11.2 | B13: ='Reçete Dizayn-renkli'!B13 -> 54.63333333 | C13: ='Reçete Dizayn-renkli'!C13 -> 0.9666666667 | D13: ='Reçete Dizayn-renkli'!D13 -> 100 | E13: ='Reçete Dizayn-renkli'!E13 -> 100 | F13: ='Reçete Dizayn-renkli'!F13 -> 0 | G13: ='Reçete Dizayn-renkli'!G13 -> 0 | H13: 68.85166667 | J13: =F8 -> K.KUM | K13: 0 | L13: 0 | N13: 8 | O13: 54 | P13: 71 | Q13: 62.5 | R13: =H14 -> 57.81666667 | S13: ='Reçete Dizayn-renkli'!H14 -> 57.81666667
A14: ='Reçete Dizayn-renkli'!A14 -> 8 | B14: ='Reçete Dizayn-renkli'!B14 -> 11 | C14: ='Reçete Dizayn-renkli'!C14 -> 0.3333333333 | D14: ='Reçete Dizayn-renkli'!D14 -> 100 | E14: ='Reçete Dizayn-renkli'!E14 -> 100 | F14: ='Reçete Dizayn-renkli'!F14 -> 0 | G14: ='Reçete Dizayn-renkli'!G14 -> 0 | H14: 57.81666667 | J14: =G8 -> G.D.AGR. | N14: 11.2 | O14: 63.5 | P14: 79 | Q14: 71.25 | R14: =H13 -> 68.85166667 | S14: ='Reçete Dizayn-renkli'!H13 -> 68.85166667
A15: ='Reçete Dizayn-renkli'!A15 -> 5.6 | B15: ='Reçete Dizayn-renkli'!B15 -> 2.066666667 | C15: ='Reçete Dizayn-renkli'!C15 -> 0.3333333333 | D15: ='Reçete Dizayn-renkli'!D15 -> 95.6 | E15: ='Reçete Dizayn-renkli'!E15 -> 100 | F15: ='Reçete Dizayn-renkli'!F15 -> 0 | G15: ='Reçete Dizayn-renkli'!G15 -> 0 | H15: 54.48333333 | N15: 16 | O15: 73 | P15: 86 | Q15: 79.5 | R15: =H12 -> 83.83333333 | S15: ='Reçete Dizayn-renkli'!H12 -> 83.83333333
A16: ='Reçete Dizayn-renkli'!A16 -> 4 | B16: ='Reçete Dizayn-renkli'!B16 -> 0.3333333333 | C16: ='Reçete Dizayn-renkli'!C16 -> 0.3333333333 | D16: ='Reçete Dizayn-renkli'!D16 -> 77.7 | E16: ='Reçete Dizayn-renkli'!E16 -> 90 | F16: ='Reçete Dizayn-renkli'!F16 -> 0 | G16: ='Reçete Dizayn-renkli'!G16 -> 0 | H16: 46.575 | J16: İRİ AGR. | K16: 45 | L16: 50 | N16: 19 | O16: 80.5 | P16: 91 | Q16: 85.75 | R16: =H11 -> 89.79333333 | S16: ='Reçete Dizayn-renkli'!H11 -> 89.79333333
A17: ='Reçete Dizayn-renkli'!A17 -> 2 | B17: ='Reçete Dizayn-renkli'!B17 -> 0.2666666667 | C17: ='Reçete Dizayn-renkli'!C17 -> 0.2 | D17: ='Reçete Dizayn-renkli'!D17 -> 55.9 | E17: ='Reçete Dizayn-renkli'!E17 -> 51 | F17: ='Reçete Dizayn-renkli'!F17 -> 0 | G17: ='Reçete Dizayn-renkli'!G17 -> 0 | H17: 29.38166667 | J17: İNCE AGR. | K17: 50 | L17: 55 | N17: 22.4 | O17: 89 | P17: 96 | Q17: 92.5 | R17: =H10 -> 96.43333333 | S17: ='Reçete Dizayn-renkli'!H10 -> 96.43333333
A18: ='Reçete Dizayn-renkli'!A18 -> 1 | B18: ='Reçete Dizayn-renkli'!B18 -> 0.2666666667 | C18: ='Reçete Dizayn-renkli'!C18 -> 0.2 | D18: ='Reçete Dizayn-renkli'!D18 -> 39.2 | E18: ='Reçete Dizayn-renkli'!E18 -> 35 | F18: ='Reçete Dizayn-renkli'!F18 -> 0 | G18: ='Reçete Dizayn-renkli'!G18 -> 0 | H18: =($B$23*B18+$C$23*C18+$D$23*D18+$E$23*E18+$F$23*F18+$G$23*G18)/100 -> 20.40666667 | N18: 31.5 | O18: 100 | P18: 100 | Q18: 100 | R18: =H9 -> 100 | S18: ='Reçete Dizayn-renkli'!H9 -> 100
A19: ='Reçete Dizayn-renkli'!A19 -> 0.5 | B19: ='Reçete Dizayn-renkli'!B19 -> 0.2666666667 | C19: ='Reçete Dizayn-renkli'!C19 -> 0.2 | D19: ='Reçete Dizayn-renkli'!D19 -> 23.8 | E19: ='Reçete Dizayn-renkli'!E19 -> 26 | F19: ='Reçete Dizayn-renkli'!F19 -> 0 | G19: ='Reçete Dizayn-renkli'!G19 -> 0 | H19: =($B$23*B19+$C$23*C19+$D$23*D19+$E$23*E19+$F$23*F19+$G$23*G19)/100 -> 13.85666667 | J19: ÇOK İNCE MALZEME MUHTEVASI (EN 12620) ( <0,063mm)
A20: ='Reçete Dizayn-renkli'!A20 -> 0.25 | B20: ='Reçete Dizayn-renkli'!B20 -> 0.2666666667 | C20: ='Reçete Dizayn-renkli'!C20 -> 0.2 | D20: ='Reçete Dizayn-renkli'!D20 -> 11.8 | E20: ='Reçete Dizayn-renkli'!E20 -> 20 | F20: ='Reçete Dizayn-renkli'!F20 -> 0 | G20: ='Reçete Dizayn-renkli'!G20 -> 0 | H20: 9.056666667
A21: ='Reçete Dizayn-renkli'!A21 -> 0.125 | B21: ='Reçete Dizayn-renkli'!B21 -> 0.1 | C21: ='Reçete Dizayn-renkli'!C21 -> 0.1 | D21: ='Reçete Dizayn-renkli'!D21 -> 7 | E21: ='Reçete Dizayn-renkli'!E21 -> 14 | F21: ='Reçete Dizayn-renkli'!F21 -> 0 | G21: ='Reçete Dizayn-renkli'!G21 -> 0 | H21: 5.995 | J21: =IF(ISERROR((D22*D23+E22*E23+F22*F23+G22*G23)/(D23+E23+F23+G23)),"",(D22*D23+E22*E23+F22*F23+G22*G23)/(D23+E23+F23+G23)) -> 2.545454545
A22: ='Reçete Dizayn-renkli'!A22 -> 0.063 | B22: ='Reçete Dizayn-renkli'!B22 -> 0 | C22: ='Reçete Dizayn-renkli'!C22 -> 0 | D22: ='Reçete Dizayn-renkli'!D22 -> 2 | E22: ='Reçete Dizayn-renkli'!E22 -> 3 | F22: ='Reçete Dizayn-renkli'!F22 -> 0 | G22: ='Reçete Dizayn-renkli'!G22 -> 0 | H22: 1.4 | K22: En az(%) | L22: En çok(%)
A23: ='Reçete Dizayn-renkli'!A23 -> MİKTAR(%) | B23: 25 | C23: 20 | D23: 25 | E23: 30 | F23: 0 | G23: 0 | H23: =SUM(B23:G23) -> 100 | J23: 0,25 mm | K23: 18 | L23: 22
